Workbook

Sheet 第４表_県計
A1: 第4表 地域振興局別・資源構成表
A3: 全県 | O3: 単位 面積 : ha、蓄積 成長量 : ㎥
B4: 樹種 | C4: 針 葉 樹 | J4: 広 葉 樹 | O4: 計
C5: ス ギ | D5: ヒ ノ キ | E5: サ ワ ラ | F5: ア カ マ ツ | G5: カ ラ マ ツ | H5: そ の 他 針 | I5: 小 計 | J5: ク ヌ ギ | K5: ブ ナ | L5: ナ ラ | M5: そ の 他 広 | N5: 小 計
A6: 齢級
A7: 1 | B7: 面積 | C7: 22.3 | D7: 47.43 | E7: 0 | F7: 8.53 | G7: 850.64 | H7: 0.04 | I7: 928.94 | J7: 0.32 | K7: 0 | L7: 66.65 | M7: 188.8 | N7: 255.77 | O7: 1184.71
B8: 蓄積 | C8: 0 | D8: 0 | E8: 0 | F8: 0 | G8: 0 | H8: 0 | I8: 0 | J8: 0 | K8: 0 | L8: 0 | M8: 0 | N8: 0 | O8: 0
B9: 成長 | C9: 0 | D9: 0 | E9: 0 | F9: 0 | G9: 0 | H9: 0 | I9: 0 | J9: 0 | K9: 0 | L9: 0 | M9: 0 | N9: 0 | O9: 0
A10: 2 | B10: 面積 | C10: 17.66 | D10: 90.04 | E10: 0.71 | F10: 18.45 | G10: 765.56 | H10: 5.47 | I10: 897.89 | J10: 1.45 | K10: 0.1 | L10: 103.05 | M10: 701.99 | N10: 806.59 | O10: 1704.48
B11: 蓄積 | C11: 0 | D11: 0 | E11: 0 | F11: 0 | G11: 0 | H11: 0 | I11: 0 | J11: 41 | K11: 0 | L11: 1220 | M11: 9490 | N11: 10751 | O11: 10751
B12: 成長 | C12: 0 | D12: 0 | E12: 0 | F12: 0 | G12: 0 | H12: 0 | I12: 0 | J12: 12.2 | K12: 0 | L12: 170.2 | M12: 1342.7 | N12: 1525.1 | O12: 1525.1
A13: 3 | B13: 面積 | C13: 14.37 | D13: 100.7 | E13: 0 | F13: 3.39 | G13: 68.45 | H13: 0.11 | I13: 187.02 | J13: 0 | K13: 9.49 | L13: 37.42 | M13: 323.64 | N13: 370.55 | O13: 557.57
B14: 蓄積 | C14: 1801 | D14: 4442 | E14: 0 | F14: 205 | G14: 9159 | H14: 18 | I14: 15625 | J14: 0 | K14: 68 | L14: 804 | M14: 6748 | N14: 7620 | O14: 23245
B15: 成長 | C15: 369.2 | D15: 907.1 | E15: 0 | F15: 27.5 | G15: 823.2 | H15: 2.5 | I15: 2129.5 | J15: 0 | K15: 11.6 | L15: 69.5 | M15: 592.8 | N15: 673.9 | O15: 2803.4
A16: 4 | B16: 面積 | C16: 49.66 | D16: 534.6 | E16: 10.77 | F16: 12 | G16: 111.36 | H16: 2.24 | I16: 720.63 | J16: 2.27 | K16: 0.67 | L16: 55.77 | M16: 565.5 | N16: 624.21 | O16: 1344.84
B17: 蓄積 | C17: 4845 | D17: 41616 | E17: 914 | F17: 1032 | G17: 12609 | H17: 90 | I17: 61106 | J17: 88 | K17: 11 | L17: 1752 | M17: 17735 | N17: 19586 | O17: 80692
B18: 成長 | C18: 536.9 | D18: 3955.6 | E18: 85.4 | F18: 84.7 | G18: 761.6 | H18: 7.4 | I18: 5431.6 | J18: 5.5 | K18: 1 | L18: 117.6 | M18: 1194.6 | N18: 1318.7 | O18: 6750.3
A19: 5 | B19: 面積 | C19: 107.78 | D19: 887.89 | E19: 1.46 | F19: 30.74 | G19: 98.22 | H19: 11.85 | I19: 1137.94 | J19: 19.81 | K19: 9.22 | L19: 60.31 | M19: 839.33 | N19: 928.67 | O19: 2066.61
B20: 蓄積 | C20: 21485 | D20: 109837 | E20: 111 | F20: 6203 | G20: 14326 | H20: 2029 | I20: 153991 | J20: 939 | K20: 361 | L20: 3059 | M20: 36848 | N20: 41207 | O20: 195198
B21: 成長 | C21: 1465.4 | D21: 6784.9 | E21: 7.3 | F21: 317.9 | G21: 683.1 | H21: 137.2 | I21: 9395.8 | J21: 32.1 | K21: 28.4 | L21: 156.8 | M21: 1900.2 | N21: 2117.5 | O21: 11513.3
A22: 6 | B22: 面積 | C22: 249.95 | D22: 1657.1 | E22: 1.24 | F22: 71.01 | G22: 290.53 | H22: 46.17 | I22: 2316 | J22: 14.27 | K22: 8.3 | L22: 168.22 | M22: 1867.87 | N22: 2058.66 | O22: 4374.66
B23: 蓄積 | C23: 63785 | D23: 268350 | E23: 785 | F23: 8837 | G23: 49877 | H23: 9758 | I23: 401392 | J23: 1113 | K23: 578 | L23: 11073 | M23: 93310 | N23: 106074 | O23: 507466
B24: 成長 | C24: 3050.8 | D24: 12142.7 | E24: 42.2 | F24: 346.7 | G24: 1323.6 | H24: 507.6 | I24: 17413.6 | J24: 28.7 | K24: 38.4 | L24: 445.6 | M24: 3737.9 | N24: 4250.6 | O24: 21664.2
A25: 7 | B25: 面積 | C25: 517.33 | D25: 2720.89 | E25: 2.34 | F25: 169.25 | G25: 482.38 | H25: 76.73 | I25: 3968.92 | J25: 35.24 | K25: 19 | L25: 286.23 | M25: 3454.52 | N25: 3794.99 | O25: 7763.91
B26: 蓄積 | C26: 147719 | D26: 515598 | E26: 741 | F26: 27315 | G26: 100684 | H26: 15633 | I26: 807690 | J26: 2654 | K26: 2037 | L26: 19107 | M26: 199191 | N26: 222989 | O26: 1030679
B27: 成長 | C27: 5496.8 | D27: 18555 | E27: 29.3 | F27: 695.9 | G27: 2332.1 | H27: 688.4 | I27: 27797.5 | J27: 41.3 | K27: 117.5 | L27: 599.8 | M27: 6223.7 | N27: 6982.3 | O27: 34779.8
A28: 8 | B28: 面積 | C28: 1281.97 | D28: 4244.51 | E28: 3.04 | F28: 290.47 | G28: 1029.99 | H28: 190.07 | I28: 7040.05 | J28: 80.66 | K28: 9.16 | L28: 529.04 | M28: 4588.73 | N28: 5207.59 | O28: 12247.64
B29: 蓄積 | C29: 426114 | D29: 838901 | E29: 377 | F29: 48820 | G29: 224978 | H29: 38656 | I29: 1577846 | J29: 6405 | K29: 406 | L29: 37052 | M29: 298282 | N29: 342145 | O29: 1919991
B30: 成長 | C30: 13447.8 | D30: 23508.6 | E30: 12 | F30: 1074.9 | G30: 4923.1 | H30: 1450.4 | I30: 44416.8 | J30: 65.1 | K30: 17.5 | L30: 1109.2 | M30: 8939 | N30: 10130.8 | O30: 54547.6
A31: 9 | B31: 面積 | C31: 2327.9 | D31: 6302.3 | E31: 6.18 | F31: 745.01 | G31: 1935.25 | H31: 399.27 | I31: 11715.91 | J31: 68.34 | K31: 22.32 | L31: 568.02 | M31: 4571.31 | N31: 5229.99 | O31: 16945.9
B32: 蓄積 | C32: 871598 | D32: 1327487 | E32: 1182 | F32: 138073 | G32: 452650 | H32: 52895 | I32: 2843885 | J32: 5671 | K32: 1233 | L32: 45593 | M32: 347079 | N32: 399576 | O32: 3243461
B33: 成長 | C33: 19266.2 | D33: 31056.8 | E33: 28.2 | F33: 2121.5 | G33: 8473 | H33: 1750.5 | I33: 62696.2 | J33: 37.3 | K33: 43.8 | L33: 1261.7 | M33: 9510.6 | N33: 10853.4 | O33: 73549.6
A34: 10 | B34: 面積 | C34: 3794.68 | D34: 7682.81 | E34: 10.92 | F34: 2452.59 | G34: 4455.93 | H34: 632.62 | I34: 19029.55 | J34: 94.82 | K34: 70.53 | L34: 467.97 | M34: 5667.04 | N34: 6300.36 | O34: 25329.91
B35: 蓄積 | C35: 1504682 | D35: 1692483 | E35: 2547 | F35: 486658 | G35: 1098666 | H35: 79158 | I35: 4864194 | J35: 8019 | K35: 4319 | L35: 41791 | M35: 476311 | N35: 530440 | O35: 5394634
B36: 成長 | C36: 25236.4 | D36: 32374.1 | E36: 48.8 | F36: 6445.1 | G36: 16820.1 | H36: 2237.1 | I36: 83161.6 | J36: 27.4 | K36: 128.6 | L36: 1044.7 | M36: 11934.8 | N36: 13135.5 | O36: 96297.1
A37: 11 | B37: 面積 | C37: 5457.11 | D37: 7218.58 | E37: 29.62 | F37: 6790.98 | G37: 9735.1 | H37: 688.06 | I37: 29919.45 | J37: 50.53 | K37: 181.62 | L37: 489.37 | M37: 7786.75 | N37: 8508.27 | O37: 38427.72
B38: 蓄積 | C38: 2284934 | D38: 1746412 | E38: 6319 | F38: 1435821 | G38: 2613460 | H38: 97976 | I38: 8184922 | J38: 4434 | K38: 11341 | L38: 48271 | M38: 711122 | N38: 775168 | O38: 8960090 | P38: 伐 跡 | R38: 909.11
B39: 成長 | C39: 28743.6 | D39: 29100 | E39: 105.8 | F39: 16029.8 | G39: 34448.1 | H39: 2264.1 | I39: 110691.4 | J39: 11.4 | K39: 299 | L39: 950.1 | M39: 13765.1 | N39: 15025.6 | O39: 125717 | P39: 未立木地 | R39: 6008.8
A40: 12 | B40: 面積 | C40: 8000.39 | D40: 4366.43 | E40: 30.97 | F40: 15698.6 | G40: 24158.51 | H40: 409.69 | I40: 52664.59 | J40: 82.68 | K40: 178.33 | L40: 829.1 | M40: 13589.91 | N40: 14680.02 | O40: 67344.61 | P40: 岩石地 | R40: 4371.06
B41: 蓄積 | C41: 3505605 | D41: 1131393 | E41: 8532 | F41: 3460611 | G41: 6745205 | H41: 63348 | I41: 14914694 | J41: 7340 | K41: 16201 | L41: 85044 | M41: 1288398 | N41: 1396983 | O41: 16311677 | P41: 崩壊地 | R41: 4435.54
B42: 成長 | C42: 39712.2 | D42: 15696.6 | E42: 127 | F42: 33900.1 | G42: 77900.4 | H42: 1231.2 | I42: 168567.5 | J42: 16 | K42: 370.6 | L42: 1600.1 | M42: 24222 | N42: 26208.7 | O42: 194776.2 | P42: はげ山 | R42: 109.77
A43: 13 | B43: 面積 | C43: 9262.37 | D43: 3151.94 | E43: 49.26 | F43: 15883.08 | G43: 41585.75 | H43: 647.95 | I43: 70580.35 | J43: 246.01 | K43: 476.52 | L43: 1437.12 | M43: 22239.5 | N43: 24399.15 | O43: 94979.5 | P43: 施設敷 | R43: 1753.07
B44: 蓄積 | C44: 4096077 | D44: 848665 | E44: 13871 | F44: 3603402 | G44: 11847021 | H44: 95719 | I44: 20504755 | J44: 21740 | K44: 37801 | L44: 159755 | M44: 2323989 | N44: 2543285 | O44: 23048040 | P44: 林地開発 | R44: 309.86
B45: 成長 | C45: 44994.6 | D45: 11413.4 | E45: 202.5 | F45: 34180.4 | G45: 132334.6 | H45: 1812.5 | I45: 224938 | J45: 59.9 | K45: 879.3 | L45: 2497.8 | M45: 36740.5 | N45: 40177.5 | O45: 265115.5 | P45: 計 | R45: 17897.21
A46: 14 | B46: 面積 | C46: 8903.53 | D46: 2705.5 | E46: 137.2 | F46: 12880.09 | G46: 47041.36 | H46: 920.19 | I46: 72587.87 | J46: 614.56 | K46: 348.21 | L46: 3298.22 | M46: 38513.34 | N46: 42774.33 | O46: 115362.2 | P46: 竹 林 | R46: 1514.62
B47: 蓄積 | C47: 4012649 | D47: 752643 | E47: 37091 | F47: 3035854 | G47: 14041984 | H47: 149383 | I47: 22029604 | J47: 55761 | K47: 34876 | L47: 381963 | M47: 4323775 | N47: 4796375 | O47: 26825979 | P47: 更新 困難地 | Q47: 面積 | R47: 507.76
B48: 成長 | C48: 35924.9 | D48: 9048.7 | E48: 487.9 | F48: 24163.1 | G48: 132553.5 | H48: 2510.6 | I48: 204688.7 | J48: 140.2 | K48: 665.5 | L48: 4335.1 | M48: 50000.5 | N48: 55141.3 | O48: 259830 | Q48: 蓄積 | R48: 94047
A49: 15 以上 | B49: 面積 | C49: 15271.47 | D49: 9273.94 | E49: 758.94 | F49: 35579.11 | G49: 45671.2 | H49: 11257.4 | I49: 117812.06 | J49: 1193.21 | K49: 4802.12 | L49: 9886.01 | M49: 144858.16 | N49: 160739.5 | O49: 278551.56 | Q49: 成長 | R49: 166.8
B50: 蓄積 | C50: 7674833 | D50: 2784927 | E50: 229638 | F50: 9048802 | G50: 14051830 | H50: 2525474 | I50: 36315504 | J50: 110921 | K50: 640634 | L50: 1216059 | M50: 17074075 | N50: 19041689 | O50: 55357193
B51: 成長 | C51: 32798 | D51: 8169.9 | E51: 492.7 | F51: 39228.2 | G51: 76925.3 | H51: 11219.6 | I51: 168833.7 | J51: 226.8 | K51: 3018 | L51: 6950.2 | M51: 79519.1 | N51: 89714.1 | O51: 258547.8 | P51: 総 合 計
A52: 計 | B52: 面積 | C52: 55278.47 | D52: 50984.66 | E52: 1042.65 | F52: 90633.3 | G52: 178280.23 | H52: 15287.86 | I52: 391507.17 | J52: 2504.17 | K52: 6135.59 | L52: 18282.5 | M52: 249756.39 | N52: 276678.65 | O52: 668185.82 | P52: 面 積 | R52: 688105.41
B53: 蓄積 | C53: 24616127 | D53: 12062754 | E53: 302108 | F53: 21301633 | G53: 51262449 | H53: 3130137 | I53: 112675208 | J53: 225126 | K53: 749866 | L53: 2052543 | M53: 27206353 | N53: 30233888 | O53: 142909096 | P53: 蓄 積 | R53: 143003143
B54: 成長 | C54: 251042.8 | D54: 202713.4 | E54: 1669.1 | F54: 158615.8 | G54: 490301.7 | H54: 25819.1 | I54: 1130161.9 | J54: 703.9 | K54: 5619.2 | L54: 21308.4 | M54: 249623.5 | N54: 277255 | O54: 1407416.9 | P54: 成長量 | R54: 1407583.7

Sheet 佐久
A1: 第4表 地域振興局別・資源構成表
A3: 佐久地域振興局 | O3: 単位 面積 : ha、蓄積 成長量 : ㎥
B4: 樹種 | C4: 針 葉 樹 | J4: 広 葉 樹 | O4: 計
C5: ス ギ | D5: ヒ ノ キ | E5: サ ワ ラ | F5: ア カ マ ツ | G5: カ ラ マ ツ | H5: そ の 他 針 | I5: 小 計 | J5: ク ヌ ギ | K5: ブ ナ | L5: ナ ラ | M5: そ の 他 広 | N5: 小 計
A6: 齢級
A7: 1 | B7: 面積 | D7: 6.35 | F7: 2.93 | G7: 387.94 | I7: 397.22 | L7: 3.14 | M7: 51.49 | N7: 54.63 | O7: =I7+N7 -> 451.85
B8: 蓄積 | D8: 0 | F8: 0 | G8: 0 | I8: 0 | L8: 0 | M8: 0 | N8: 0 | O8: =I8+N8 -> 0
B9: 成長 | D9: 0 | F9: 0 | G9: 0 | I9: 0 | L9: 0 | M9: 0 | N9: 0 | O9: 0
A10: 2 | B10: 面積 | C10: 0.09 | D10: 5.18 | E10: 0.31 | F10: 1.13 | G10: 451.45 | H10: 0.43 | I10: 458.59 | L10: 12.02 | M10: 186.06 | N10: 198.08 | O10: 656.67
B11: 蓄積 | C11: 0 | D11: 0 | E11: 0 | F11: 0 | G11: 0 | H11: 0 | I11: 0 | L11: 141 | M11: 2565 | N11: 2706 | O11: 2706
B12: 成長 | C12: 0 | D12: 0 | E12: 0 | F12: 0 | G12: 0 | H12: 0 | I12: 0 | L12: 20.2 | M12: 372.5 | N12: 392.7 | O12: 392.7
A13: 3 | B13: 面積 | D13: 16.47 | F13: 0.43 | G13: 24 | I13: 40.9 | K13: 0.43 | L13: 13.48 | M13: 54.28 | N13: 68.19 | O13: 109.09
B14: 蓄積 | D14: 803 | F14: 29 | G14: 3224 | H14: 16 | I14: 4072 | K14: 4 | L14: 284 | M14: 1124 | N14: 1412 | O14: 5484
B15: 成長 | D15: 176.1 | F15: 3.9 | G15: 245 | H15: 2.2 | I15: 427.2 | K15: 0.4 | L15: 24.3 | M15: 97.1 | N15: 121.8 | O15: 549
A16: 4 | B16: 面積 | C16: 0.01 | D16: 34.88 | E16: 0.4 | G16: 57.75 | I16: 93.04 | L16: 12.8 | M16: 125.86 | N16: 138.66 | O16: 231.7
B17: 蓄積 | C17: 1 | D17: 2899 | E17: 25 | G17: 6779 | I17: 9704 | L17: 379 | M17: 4327 | N17: 4706 | O17: 14410
B18: 成長 | C18: 0.1 | D18: 308.9 | E18: 2.8 | G18: 402.2 | I18: 714 | L18: 25.5 | M18: 292.5 | N18: 318 | O18: 1032
A19: 5 | B19: 面積 | C19: 0.88 | D19: 40.29 | F19: 5.88 | G19: 12.89 | H19: 2.13 | I19: 62.07 | J19: 0.85 | L19: 10.74 | M19: 128.78 | N19: 140.37 | O19: 202.44
B20: 蓄積 | C20: 195 | D20: 6026 | F20: 718 | G20: 2155 | H20: 619 | I20: 9713 | J20: 37 | L20: 449 | M20: 5225 | N20: 5711 | O20: 15424
B21: 成長 | C21: 10.2 | D21: 428.6 | F21: 36.2 | G21: 100 | H21: 43.7 | I21: 618.7 | J21: 1.9 | L21: 24.1 | M21: 273.8 | N21: 299.8 | O21: 918.5
A22: 6 | B22: 面積 | C22: 2.29 | D22: 59.8 | E22: 0.55 | F22: 8.59 | G22: 55.19 | H22: 4.8 | I22: 131.22 | J22: 1.03 | L22: 30.53 | M22: 232.24 | N22: 263.8 | O22: 395.02
B23: 蓄積 | C23: 578 | D23: 15624 | E23: 707 | F23: 1216 | G23: 11538 | H23: 2374 | I23: 32037 | J23: 56 | L23: 1669 | M23: 13105 | N23: 14830 | O23: 46867
B24: 成長 | C24: 20.8 | D24: 863.9 | E24: 38.9 | F24: 45 | G24: 267.4 | H24: 125.7 | I24: 1361.7 | J24: 2.3 | L24: 68.5 | M24: 535 | N24: 605.8 | O24: 1967.5
A25: 7 | B25: 面積 | C25: 3.19 | D25: 109.21 | E25: 0.66 | F25: 19.06 | G25: 159.64 | H25: 26.83 | I25: 318.59 | J25: 1.59 | K25: 0.44 | L25: 43.56 | M25: 545.02 | N25: 590.61 | O25: 909.2
B26: 蓄積 | C26: 1741 | D26: 29572 | E26: 392 | F26: 2837 | G26: 36999 | H26: 8566 | I26: 80107 | J26: 98 | K26: 21 | L26: 3255 | M26: 31729 | N26: 35103 | O26: 115210
B27: 成長 | C27: 48.8 | D27: 1333.8 | E27: 17.7 | F27: 73.3 | G27: 816 | H27: 371.9 | I27: 2661.5 | J27: 3.1 | K27: 1.2 | L27: 100.8 | M27: 982 | N27: 1087.1 | O27: 3748.6
A28: 8 | B28: 面積 | C28: 2.99 | D28: 131.49 | E28: 0.06 | F28: 23.53 | G28: 320.68 | H28: 7.97 | I28: 486.72 | J28: 0.27 | K28: 0.04 | L28: 43.6 | M28: 423.32 | N28: 467.23 | O28: 953.95
B29: 蓄積 | C29: 1081 | D29: 39556 | E29: 14 | F29: 4100 | G29: 73679 | H29: 11974 | I29: 130404 | J29: 20 | K29: 2 | L29: 3106 | M29: 27914 | N29: 31042 | O29: 161446
B30: 成長 | C30: 24.9 | D30: 1467.8 | E30: 0.5 | F30: 83.6 | G30: 1555 | H30: 457.9 | I30: 3589.7 | J30: 0.7 | K30: 0.1 | L30: 93.3 | M30: 841.8 | N30: 935.9 | O30: 4525.6
A31: 9 | B31: 面積 | C31: 20.57 | D31: 311.73 | E31: 1.03 | F31: 134.7 | G31: 779.04 | H31: 46.6 | I31: 1293.67 | J31: 0.54 | L31: 78.81 | M31: 501.47 | N31: 580.82 | O31: 1874.49
B32: 蓄積 | C32: 6950 | D32: 84052 | E32: 233 | F32: 25674 | G32: 208468 | H32: 11260 | I32: 336637 | J32: 44 | L32: 6252 | M32: 39816 | N32: 46112 | O32: 382749
B33: 成長 | C33: 128.7 | D33: 2540.2 | E33: 7 | F33: 387.6 | G33: 3813.5 | H33: 399.5 | I33: 7276.5 | J33: 1.2 | L33: 175.3 | M33: 1110.9 | N33: 1287.4 | O33: 8563.9
A34: 10 | B34: 面積 | C34: 14.61 | D34: 99.08 | E34: 0.85 | F34: 286.46 | G34: 1420.51 | H34: 21.58 | I34: 1843.09 | J34: 0.69 | L34: 65.92 | M34: 434.75 | N34: 501.36 | O34: 2344.45
B35: 蓄積 | C35: 5884 | D35: 29364 | E35: 242 | F35: 59923 | G35: 415292 | H35: 4253 | I35: 514958 | J35: 66 | L35: 6119 | M35: 38531 | N35: 44716 | O35: 559674
B36: 成長 | C36: 88.5 | D36: 851.6 | E36: 7 | F36: 779.8 | G36: 6258.8 | H36: 125.4 | I36: 8111.1 | J36: 1.7 | L36: 155.8 | M36: 975.6 | N36: 1133.1 | O36: 9244.2
A37: 11 | B37: 面積 | C37: 44.53 | D37: 66.47 | E37: 0.47 | F37: 591.99 | G37: 3355.04 | H37: 76.92 | I37: 4135.42 | J37: 1.93 | L37: 98.8 | M37: 654.65 | N37: 755.38 | O37: 4890.8
B38: 蓄積 | C38: 18083 | D38: 22881 | E38: 175 | F38: 128962 | G38: 1027979 | H38: 16115 | I38: 1214195 | J38: 196 | L38: 9998 | M38: 62717 | N38: 72911 | O38: 1287106 | P38: 伐 跡 | R38: 311.95
B39: 成長 | C39: 235.6 | D39: 550.9 | E39: 4.1 | F39: 1427.4 | G39: 12387.1 | H39: 391.3 | I39: 14996.4 | J39: 3.8 | L39: 197.5 | M39: 1229.2 | N39: 1430.5 | O39: 16426.9 | P39: 未立木地 | R39: 392.1
A40: 12 | B40: 面積 | C40: 85.1 | D40: 15.07 | E40: 0.65 | F40: 1029.62 | G40: 5976.72 | H40: 58.68 | I40: 7165.84 | J40: 1.47 | L40: 129.18 | M40: 984.29 | N40: 1114.94 | O40: 8280.78 | P40: 岩石地 | R40: 565.01
B41: 蓄積 | C41: 36193 | D41: 5304 | E41: 263 | F41: 235175 | G41: 1917977 | H41: 13606 | I41: 2208518 | J41: 130 | L41: 13492 | M41: 97643 | N41: 111265 | O41: 2319783 | P41: 崩壊地 | R41: 184.77
B42: 成長 | C42: 401 | D42: 112.1 | E42: 5.4 | F42: 2143.8 | G42: 17645.9 | H42: 277.5 | I42: 20585.7 | J42: 2.3 | L42: 252.8 | M42: 1846.4 | N42: 2101.5 | O42: 22687.2 | P42: はげ山 | R42: 1.86
A43: 13 | B43: 面積 | C43: 129.14 | D43: 5.22 | E43: 3.53 | F43: 812.67 | G43: 8780.41 | H43: 25.71 | I43: 9756.68 | J43: 4 | L43: 246.81 | M43: 1718.91 | N43: 1969.72 | O43: 11726.4 | P43: 施設敷 | R43: 298.05
B44: 蓄積 | C44: 56160 | D44: 1813 | E44: 1358 | F44: 189905 | G44: 2898071 | H44: 6904 | I44: 3154211 | J44: 445 | L44: 27489 | M44: 185719 | N44: 213653 | O44: 3367864 | P44: 林地開発
B45: 成長 | C45: 590.7 | D45: 38.4 | E45: 25.7 | F45: 1683.2 | G45: 24869.7 | H45: 129.6 | I45: 27337.3 | J45: 6.4 | L45: 423.1 | M45: 2868.9 | N45: 3298.4 | O45: 30635.7 | P45: 計 | R45: =SUM(R38:R44) -> 1753.74
A46: 14 | B46: 面積 | C46: 59.66 | D46: 5.5 | E46: 17.01 | F46: 611.12 | G46: 10494.32 | H46: 69.39 | I46: 11257 | J46: 6.57 | L46: 589.77 | M46: 3945.89 | N46: 4542.23 | O46: 15799.23 | P46: 竹 林 | R46: 29.79
B47: 蓄積 | C47: 27360 | D47: 2241 | E47: 5413 | F47: 145208 | G47: 3593480 | H47: 19291 | I47: 3792993 | J47: 738 | L47: 67530 | M47: 443001 | N47: 511269 | O47: 4304262 | P47: 更新 困難地 | Q47: 面積 | R47: 120.72
B48: 成長 | C48: 248.8 | D48: 39.7 | E48: 97.8 | F48: 1133 | G48: 25293.9 | H48: 327 | I48: 27140.2 | J48: 8.1 | L48: 758.5 | M48: 5027.4 | N48: 5794 | O48: 32934.2 | Q48: 蓄積 | R48: 20845
A49: 15 以上 | B49: 面積 | C49: 81.52 | D49: 124.01 | E49: 63.65 | F49: 2092.24 | G49: 10026.35 | H49: 1176.44 | I49: 13564.21 | J49: 14.89 | L49: 1157.91 | M49: 11050.04 | N49: 12222.84 | O49: 25787.05 | Q49: 成長 | R49: 84.7
B50: 蓄積 | C50: 38926 | D50: 58217 | E50: 27245 | F50: 524347 | G50: 3422499 | H50: 442525 | I50: 4513759 | J50: 1823 | L50: 141907 | M50: 1305569 | N50: 1449299 | O50: 5963058
B51: 成長 | C51: 46.1 | D51: 87.8 | E51: 73.8 | F51: 1872.5 | G51: 13677.1 | H51: 2346.3 | I51: 18103.6 | J51: 13.2 | L51: 860 | M51: 6493.2 | N51: 7366.4 | O51: 25470 | P51: 総 合 計
A52: 計 | B52: 面積 | C52: =SUM(C7,C10,C13,C16,C19,C22,C25,C28,C31,C34,C37,C40,C43,C46,C49) -> 444.58 | D52: =SUM(D7,D10,D13,D16,D19,D22,D25,D28,D31,D34,D37,D40,D43,D46,D49) -> 1030.75 | E52: 89.17 | F52: 5620.35 | G52: 42301.93 | H52: 1517.48 | I52: =SUM(C52:H52) -> 51004.26 | J52: =SUM(J7,J10,J13,J16,J19,J22,J25,J28,J31,J34,J37,J40,J43,J46,J49) -> 33.83 | K52: =SUM(K7,K10,K13,K16,K19,K22,K25,K28,K31,K34,K37,K40,K43,K46,K49) -> 0.91 | L52: =SUM(L7,L10,L13,L16,L19,L22,L25,L28,L31,L34,L37,L40,L43,L46,L49) -> 2537.07 | M52: =SUM(M7,M10,M13,M16,M19,M22,M25,M28,M31,M34,M37,M40,M43,M46,M49) -> 21037.05 | N52: =SUM(J52:M52) -> 23608.86 | O52: =SUM(N52,I52) -> 74613.12 | P52: 面 積 | R52: =SUM(O52,R45,R47,R46) -> 76517.37
B53: 蓄積 | C53: 193152 | D53: 298352 | E53: 36067 | F53: 1318094 | G53: 13618140 | H53: 537503 | I53: =SUM(C53:H53) -> 16001308 | J53: =SUM(J8,J11,J14,J17,J20,J23,J26,J29,J32,J35,J38,J41,J44,J47,J50) -> 3653 | K53: 27 | L53: 282070 | M53: 2258985 | N53: =SUM(J53:M53) -> 2544735 | O53: =SUM(N53,I53) -> 18546043 | P53: 蓄 積 | R53: =O53+R48 -> 18566888
B54: 成長 | C54: 1844.2 | D54: 8799.8 | E54: 280.7 | F54: 9669.3 | G54: 107331.6 | H54: 4998 | I54: =SUM(C54:H54) -> 132923.6 | J54: 44.7 | K54: 1.7 | L54: 3179.7 | M54: 22946.3 | N54: =SUM(J54:M54) -> 26172.4 | O54: =SUM(N54,I54) -> 159096 | P54: 成長量 | R54: =O54+R49 -> 159180.7

Sheet 上田
A1: 第4表 地域振興局別・資源構成表
A3: 上田地域振興局 | O3: 単位 面積 : ha、蓄積 成長量 : ㎥
B4: 樹種 | C4: 針 葉 樹 | J4: 広 葉 樹 | O4: 計
C5: ス ギ | D5: ヒ ノ キ | E5: サ ワ ラ | F5: ア カ マ ツ | G5: カ ラ マ ツ | H5: そ の 他 針 | I5: 小 計 | J5: ク ヌ ギ | K5: ブ ナ | L5: ナ ラ | M5: そ の 他 広 | N5: 小 計
A6: 齢級
A7: 1 | B7: 面積 | C7: 0.07 | D7: 0.03 | F7: 0.21 | G7: 242.01 | I7: 242.32 | L7: 13.71 | M7: 18.77 | N7: 32.48 | O7: =I7+N7 -> 274.8
B8: 蓄積 | C8: 0 | D8: 0 | F8: 0 | G8: 0 | I8: 0 | L8: 0 | M8: 0 | N8: 0 | O8: 0
B9: 成長 | C9: 0 | D9: 0 | F9: 0 | G9: 0 | I9: 0 | L9: 0 | M9: 0 | N9: 0 | O9: 0
A10: 2 | B10: 面積 | D10: 3.52 | G10: 129.1 | I10: 132.62 | K10: 0.1 | L10: 6.1 | M10: 162.18 | N10: 168.38 | O10: 301
B11: 蓄積 | D11: 0 | G11: 0 | I11: 0 | K11: 0 | L11: 78 | M11: 2328 | N11: 2406 | O11: 2406
B12: 成長 | D12: 0 | G12: 0 | I12: 0 | K12: 0 | L12: 10.9 | M12: 335.1 | N12: 346 | O12: 346
A13: 3 | B13: 面積 | D13: 10.98 | F13: 0.22 | G13: 8.58 | I13: 19.78 | L13: 10.39 | M13: 94.03 | N13: 104.42 | O13: 124.2
B14: 蓄積 | D14: 376 | F14: 8 | G14: 660 | I14: 1044 | L14: 238 | M14: 1858 | N14: 2096 | O14: 3140
B15: 成長 | D15: 84 | F15: 1 | G15: 60.5 | I15: 145.5 | L15: 20.4 | M15: 159.1 | N15: 179.5 | O15: 325
A16: 4 | B16: 面積 | D16: 38.15 | F16: 0.93 | G16: 9.04 | H16: 0.59 | I16: 48.71 | J16: 1.95 | L16: 3.71 | M16: 66.01 | N16: 71.67 | O16: 120.38
B17: 蓄積 | D17: 3117 | F17: 83 | G17: 1348 | H17: 35 | I17: 4583 | J17: 70 | L17: 116 | M17: 2212 | N17: 2398 | O17: 6981
B18: 成長 | D18: 328.9 | F18: 6.8 | G18: 78.6 | H18: 2.9 | I18: 417.2 | J18: 4.7 | L18: 8.6 | M18: 150.6 | N18: 163.9 | O18: 581.1
A19: 5 | B19: 面積 | C19: 1.05 | D19: 70.73 | F19: 1.82 | G19: 38.06 | I19: 111.66 | J19: 1.22 | K19: 3.02 | L19: 11.77 | M19: 81.57 | N19: 97.58 | O19: 209.24
B20: 蓄積 | C20: 219 | D20: 8976 | F20: 210 | G20: 6553 | I20: 15958 | J20: 54 | K20: 82 | L20: 884 | M20: 3890 | N20: 4910 | O20: 20868
B21: 成長 | C21: 10.8 | D21: 637.4 | F21: 10.9 | G21: 302.8 | I21: 961.9 | J21: 2.8 | K21: 6.4 | L21: 45.5 | M21: 202.1 | N21: 256.8 | O21: 1218.7
A22: 6 | B22: 面積 | C22: 5.84 | D22: 67.84 | F22: 12.46 | G22: 50.59 | H22: 1.74 | I22: 138.47 | J22: 0.69 | L22: 48.74 | M22: 160.54 | N22: 209.97 | O22: 348.44
B23: 蓄積 | C23: 1923 | D23: 16078 | F23: 1404 | G23: 10221 | H23: 190 | I23: 29816 | J23: 138 | K23: 180 | L23: 2715 | M23: 8510 | N23: 11543 | O23: 41359
B24: 成長 | C24: 69.2 | D24: 888.9 | F24: 55.2 | G24: 234.5 | H24: 10.1 | I24: 1257.9 | J24: 5.7 | K24: 12 | L24: 111.2 | M24: 346.8 | N24: 475.7 | O24: 1733.6
A25: 7 | B25: 面積 | C25: 17.05 | D25: 209.48 | F25: 35.95 | G25: 111.36 | H25: 2.04 | I25: 375.88 | J25: 2.38 | L25: 55.01 | M25: 322.25 | N25: 379.64 | O25: 755.52
B26: 蓄積 | C26: 7336 | D26: 48796 | F26: 5844 | G26: 27110 | H26: 414 | I26: 89500 | J26: 134 | K26: 1418 | L26: 3681 | M26: 20067 | N26: 25300 | O26: 114800
B27: 成長 | C27: 204.5 | D27: 2197.8 | F27: 140.4 | G27: 597 | H27: 17.8 | I27: 3157.5 | J27: 4.1 | K27: 82.3 | L27: 114.3 | M27: 624 | N27: 824.7 | O27: 3982.2
A28: 8 | B28: 面積 | C28: 55.54 | D28: 224.66 | F28: 34.13 | G28: 171.97 | H28: 21.34 | I28: 507.64 | J28: 4.3 | L28: 127.29 | M28: 460.45 | N28: 592.04 | O28: 1099.68
B29: 蓄積 | C29: 24458 | D29: 61054 | F29: 6348 | G29: 44400 | H29: 3744 | I29: 140004 | J29: 310 | L29: 9012 | M29: 31419 | N29: 40741 | O29: 180745
B30: 成長 | C30: 561.5 | D30: 2262.1 | F30: 128 | G30: 930.8 | H30: 142.6 | I30: 4025 | J30: 9.2 | L30: 271.7 | M30: 944.7 | N30: 1225.6 | O30: 5250.6
A31: 9 | B31: 面積 | C31: 70.81 | D31: 437.06 | F31: 118.96 | G31: 165.11 | H31: 22.51 | I31: 814.45 | J31: 5.38 | L31: 79.84 | M31: 398.69 | N31: 483.91 | O31: 1298.36
B32: 蓄積 | C32: 26741 | D32: 118268 | F32: 23402 | G32: 46006 | H32: 4559 | I32: 218976 | J32: 441 | L32: 6534 | M32: 31495 | N32: 38470 | O32: 257446
B33: 成長 | C33: 482.1 | D33: 3559.8 | F33: 352.7 | G33: 828.9 | H33: 160.1 | I33: 5383.6 | J33: 12.6 | L33: 183.7 | M33: 881.9 | N33: 1078.2 | O33: 6461.8
A34: 10 | B34: 面積 | C34: 137.08 | D34: 303.68 | F34: 309.92 | G34: 199.49 | H34: 7.4 | I34: 957.57 | J34: 3.89 | L34: 43.87 | M34: 455.45 | N34: 503.21 | O34: 1460.78
B35: 蓄積 | C35: 54326 | D35: 88403 | F35: 64915 | G35: 60855 | H35: 4208 | I35: 272707 | J35: 337 | L35: 4099 | M35: 41085 | N35: 45521 | O35: 318228
B36: 成長 | C36: 816.5 | D36: 2558.7 | F36: 846.7 | G36: 913.5 | H36: 125.3 | I36: 5260.7 | J36: 8.5 | L36: 104.9 | M36: 1044.4 | N36: 1157.8 | O36: 6418.5
A37: 11 | B37: 面積 | C37: 252.88 | D37: 201.17 | E37: 0.1 | F37: 812.97 | G37: 491.52 | H37: 22.13 | I37: 1780.77 | J37: 3.71 | L37: 54.34 | M37: 352.81 | N37: 410.86 | O37: 2191.63
B38: 蓄積 | C38: 106978 | D38: 66623 | E38: 35 | F38: 179399 | G38: 154913 | H38: 5021 | I38: 512969 | J38: 374 | L38: 5482 | M38: 34663 | N38: 40519 | O38: 553488 | P38: 伐 跡 | R38: 116.58
B39: 成長 | C39: 1393.1 | D39: 1599.6 | E39: 0.8 | F39: 1976.2 | G39: 1860.9 | H39: 117 | I39: 6947.6 | J39: 7.6 | L39: 109 | M39: 686.4 | N39: 803 | O39: 7750.6 | P39: 未立木地 | R39: 167.36
A40: 12 | B40: 面積 | C40: 230.81 | D40: 95.84 | E40: 2.46 | F40: 1571.4 | G40: 1534.23 | H40: 11.74 | I40: 3446.48 | J40: 6.62 | L40: 47.82 | M40: 546.91 | N40: 601.35 | O40: 4047.83 | P40: 岩石地 | R40: 173.35
B41: 蓄積 | C41: 102995 | D41: 35237 | E41: 936 | F41: 362695 | G41: 510888 | H41: 3006 | I41: 1015757 | J41: 740 | L41: 5191 | M41: 55809 | N41: 61740 | O41: 1077497 | P41: 崩壊地 | R41: 66.13
B42: 成長 | C42: 1137.7 | D42: 740.7 | E42: 19.8 | F42: 3277.2 | G42: 4642.8 | H42: 60.2 | I42: 9878.4 | J42: 13.7 | L42: 98.1 | M42: 1069.2 | N42: 1181 | O42: 11059.4 | P42: はげ山 | R42: 1.94
A43: 13 | B43: 面積 | C43: 309.52 | D43: 28.96 | E43: 2.94 | F43: 1781.56 | G43: 3265.85 | H43: 33.12 | I43: 5421.95 | J43: 32.41 | L43: 79.22 | M43: 1008.88 | N43: 1120.51 | O43: 6542.46 | P43: 施設敷 | R43: 360.94
B44: 蓄積 | C44: 141054 | D44: 11018 | E44: 1079 | F44: 420733 | G44: 1118661 | H44: 8471 | I44: 1701016 | J44: 3492 | L44: 9068 | M44: 114071 | N44: 126631 | O44: 1827647 | P44: 林地開発 | R44: 20.12
B45: 成長 | C45: 1489 | D45: 225.5 | E45: 22.4 | F45: 3728 | G45: 9450.4 | H45: 163.1 | I45: 15078.4 | J45: 53.4 | L45: 142.1 | M45: 1760.1 | N45: 1955.6 | O45: 17034 | P45: 計 | R45: =SUM(R38:R44) -> 906.42
A46: 14 | B46: 面積 | C46: 375 | D46: 15.47 | E46: 1.12 | F46: 940.48 | G46: 3140.57 | H46: 13.69 | I46: 4486.33 | J46: 100.67 | L46: 207.53 | M46: 2268.65 | N46: 2576.85 | O46: 7063.18 | P46: 竹 林 | R46: 109.49
B47: 蓄積 | C47: 175488 | D47: 6425 | E47: 487 | F47: 227813 | G47: 1106893 | H47: 4394 | I47: 1521500 | J47: 11452 | L47: 25348 | M47: 272844 | N47: 309644 | O47: 1831144 | P47: 更新 困難地 | Q47: 面積 | R47: 226.77
B48: 成長 | C48: 1583.1 | D48: 113.4 | E48: 8.1 | F48: 1766.4 | G48: 7610.3 | H48: 71.6 | I48: 11152.9 | J48: 132.1 | L48: 266.7 | M48: 2910.3 | N48: 3309.1 | O48: 14462 | Q48: 蓄積 | R48: 38410
A49: 15 以上 | B49: 面積 | C49: 490.97 | D49: 161.11 | E49: 32.51 | F49: 3141.6 | G49: 2881.05 | H49: 65.65 | I49: 6772.89 | J49: 218.11 | K49: 4 | L49: 552.72 | M49: 6097.46 | N49: 6872.29 | O49: 13645.18 | Q49: 成長 | R49: 38.2
B50: 蓄積 | C50: 241644 | D50: 75011 | E50: 15003 | F50: 813319 | G50: 1034230 | H50: 26170 | I50: 2205377 | J50: 26977 | K50: 758 | L50: 70962 | M50: 755123 | N50: 853820 | O50: 3059197
B51: 成長 | C51: 961.8 | D51: 214.4 | E51: 35.3 | F51: 2694.2 | G51: 4162.7 | H51: 249.2 | I51: 8317.6 | J51: 213.4 | K51: 0.4 | L51: 450.7 | M51: 4520.9 | N51: 5185.4 | O51: 13503 | P51: 総 合 計
A52: 計 | B52: 面積 | C52: =SUM(C7,C10,C13,C16,C19,C22,C25,C28,C31,C34,C37,C40,C43,C46,C49) -> 1946.62 | D52: 1868.68 | E52: 39.13 | F52: 8762.61 | G52: 12438.53 | H52: 201.95 | I52: =SUM(C52:H52) -> 25257.52 | J52: =SUM(J7,J10,J13,J16,J19,J22,J25,J28,J31,J34,J37,J40,J43,J46,J49) -> 381.33 | K52: =SUM(K7,K10,K13,K16,K19,K22,K25,K28,K31,K34,K37,K40,K43,K46,K49) -> 7.12 | L52: =SUM(L7,L10,L13,L16,L19,L22,L25,L28,L31,L34,L37,L40,L43,L46,L49) -> 1342.06 | M52: =SUM(M7,M10,M13,M16,M19,M22,M25,M28,M31,M34,M37,M40,M43,M46,M49) -> 12494.65 | N52: =SUM(J52:M52) -> 14225.16 | O52: =SUM(N52,I52) -> 39482.68 | P52: 面 積 | R52: =SUM(O52,R45,R47,R46) -> 40725.36
B53: 蓄積 | C53: 883162 | D53: 539382 | E53: 17540 | F53: 2106173 | G53: 4122738 | H53: 60212 | I53: =SUM(C53:H53) -> 7729207 | J53: =SUM(J8,J11,J14,J17,J20,J23,J26,J29,J32,J35,J38,J41,J44,J47,J50) -> 44519 | K53: 2438 | L53: 143408 | M53: 1375374 | N53: =SUM(J53:M53) -> 1565739 | O53: =SUM(N53,I53) -> 9294946 | P53: 蓄 積 | R53: =O53+R48 -> 9333356
B54: 成長 | C54: 8709.3 | D54: 15411.2 | E54: 86.4 | F54: 14983.7 | G54: 31673.7 | H54: 1119.9 | I54: =SUM(C54:H54) -> 71984.2 | J54: 467.8 | K54: 101.1 | L54: 1937.8 | M54: 15635.6 | N54: =SUM(J54:M54) -> 18142.3 | O54: =SUM(N54,I54) -> 90126.5 | P54: 成長量 | R54: =O54+R49 -> 90164.7

Sheet 諏訪
A1: 第4表 地域振興局別・資源構成表
A3: 諏訪地域振興局 | O3: 単位 面積 : ha、蓄積 成長量 : ㎥
B4: 樹種 | C4: 針 葉 樹 | J4: 広 葉 樹 | O4: 計
C5: ス ギ | D5: ヒ ノ キ | E5: サ ワ ラ | F5: ア カ マ ツ | G5: カ ラ マ ツ | H5: そ の 他 針 | I5: 小 計 | J5: ク ヌ ギ | K5: ブ ナ | L5: ナ ラ | M5: そ の 他 広 | N5: 小 計
A6: 齢級
A7: 1 | B7: 面積 | C7: 0.08 | G7: 17.27 | I7: 17.35 | L7: 1.2 | M7: 0.08 | N7: 1.28 | O7: =I7+N7 -> 18.63
B8: 蓄積 | C8: 0 | G8: 0 | I8: 0 | L8: 0 | M8: 0 | N8: 0 | O8: 0
B9: 成長 | C9: 0 | G9: 0 | I9: 0 | L9: 0 | M9: 0 | N9: 0 | O9: 0
A10: 2 | B10: 面積 | D10: 3.15 | E10: 0.03 | F10: 15.81 | G10: 30.85 | I10: 49.84 | L10: 4.44 | M10: 2.01 | N10: 6.45 | O10: 56.29
B11: 蓄積 | D11: 0 | E11: 0 | F11: 0 | G11: 0 | I11: 0 | L11: 39 | M11: 22 | N11: 61 | O11: 61
B12: 成長 | D12: 0 | E12: 0 | F12: 0 | G12: 0 | I12: 0 | L12: 5 | M12: 3.1 | N12: 8.1 | O12: 8.1
A13: 3 | B13: 面積 | G13: 4.57 | I13: 4.57 | M13: 6.2 | N13: 6.2 | O13: 10.77
B14: 蓄積 | G14: 155 | I14: 155 | M14: 100 | N14: 100 | O14: 255
B15: 成長 | G15: 6.8 | I15: 6.8 | M15: 8.8 | N15: 8.8 | O15: 15.6
A16: 4 | B16: 面積 | C16: 0.14 | D16: 0.34 | G16: 15.33 | I16: 15.81 | M16: 20.49 | N16: 20.49 | O16: 36.3
B17: 蓄積 | C17: 14 | D17: 346 | E17: 88 | G17: 1096 | I17: 1544 | M17: 552 | N17: 552 | O17: 2096
B18: 成長 | C18: 1.2 | D18: 31.5 | E18: 8 | G18: 65.7 | I18: 106.4 | M18: 37.5 | N18: 37.5 | O18: 143.9
A19: 5 | B19: 面積 | C19: 0.04 | D19: 0.91 | F19: 0.49 | G19: 0.28 | H19: 1.26 | I19: 2.98 | L19: 0.81 | M19: 29.2 | N19: 30.01 | O19: 32.99
B20: 蓄積 | C20: 6 | D20: 3326 | F20: 2558 | G20: 33 | H20: 850 | I20: 6773 | L20: 31 | M20: 2298 | N20: 2329 | O20: 9102
B21: 成長 | C21: 0.3 | D21: 193.9 | F21: 128.4 | G21: 1.5 | H21: 55.2 | I21: 379.3 | L21: 1.5 | M21: 118.9 | N21: 120.4 | O21: 499.7
A22: 6 | B22: 面積 | C22: 0.51 | D22: 13.15 | F22: 1.99 | G22: 0.25 | H22: 10.89 | I22: 26.79 | L22: 4.04 | M22: 78.58 | N22: 82.62 | O22: 109.41
B23: 蓄積 | C23: 145 | D23: 8226 | F23: 199 | G23: 235 | H23: 3697 | I23: 12502 | L23: 1933 | M23: 4688 | N23: 6621 | O23: 19123
B24: 成長 | C24: 5.3 | D24: 354.7 | F24: 8.7 | G24: 5.3 | H24: 186 | I24: 560 | L24: 74.2 | M24: 190.8 | N24: 265 | O24: 825
A25: 7 | B25: 面積 | C25: 0.42 | D25: 24 | F25: 6.47 | G25: 3.34 | H25: 8.59 | I25: 42.82 | L25: 4.69 | M25: 61.86 | N25: 66.55 | O25: 109.37
B26: 蓄積 | C26: 99 | D26: 12072 | E26: 88 | F26: 857 | G26: 551 | H26: 2157 | I26: 15824 | L26: 405 | M26: 4428 | N26: 4833 | O26: 20657
B27: 成長 | C27: 2.5 | D27: 391.7 | E27: 2.8 | F27: 20.5 | G27: 12.1 | H27: 101 | I27: 530.6 | L27: 14 | M27: 137.4 | N27: 151.4 | O27: 682
A28: 8 | B28: 面積 | C28: 0.66 | D28: 82.5 | E28: 0.45 | F28: 9.06 | G28: 16.44 | H28: 22.88 | I28: 131.99 | L28: 6.93 | M28: 131.44 | N28: 138.37 | O28: 270.36
B29: 蓄積 | C29: 189 | D29: 34684 | E29: 81 | F29: 1595 | G29: 3452 | H29: 3500 | I29: 43501 | L29: 368 | M29: 8871 | N29: 9239 | O29: 52740
B30: 成長 | C30: 4.3 | D30: 905 | E30: 2.1 | F30: 32.2 | G30: 75.9 | H30: 130.8 | I30: 1150.3 | L30: 10.5 | M30: 267.3 | N30: 277.8 | O30: 1428.1
A31: 9 | B31: 面積 | C31: 2.91 | D31: 170.34 | E31: 1.76 | F31: 26.31 | G31: 34.4 | H31: 90.97 | I31: 326.69 | L31: 2.77 | M31: 150.19 | N31: 152.96 | O31: 479.65
B32: 蓄積 | C32: 818 | D32: 41432 | E32: 367 | F32: 4983 | G32: 6942 | H32: 9909 | I32: 64451 | L32: 226 | M32: 11287 | N32: 11513 | O32: 75964
B33: 成長 | C33: 14.4 | D33: 880.1 | E33: 7.9 | F33: 76.6 | G33: 129.5 | H33: 317.8 | I33: 1426.3 | L33: 6 | M33: 306.4 | N33: 312.4 | O33: 1738.7
A34: 10 | B34: 面積 | C34: 7.73 | D34: 175.41 | E34: 2.86 | F34: 100.88 | G34: 137.53 | H34: 58.58 | I34: 482.99 | L34: 10.71 | M34: 277.64 | N34: 288.35 | O34: 771.34
B35: 蓄積 | C35: 2303 | D35: 41782 | E35: 654 | F35: 19959 | G35: 32314 | H35: 6699 | I35: 103711 | L35: 813 | M35: 20989 | N35: 21802 | O35: 125513
B36: 成長 | C36: 32.6 | D36: 770.6 | E36: 11.6 | F36: 266.2 | G36: 488.4 | H36: 193.6 | I36: 1763 | L36: 17.7 | M36: 535 | N36: 552.7 | O36: 2315.7
A37: 11 | B37: 面積 | C37: 6.68 | D37: 94.28 | E37: 1.41 | F37: 273.61 | G37: 626.82 | H37: 87.88 | I37: 1090.68 | L37: 10.83 | M37: 232.51 | N37: 243.34 | O37: 1334.02
B38: 蓄積 | C38: 2208 | D38: 23254 | E38: 349 | F38: 57231 | G38: 153415 | H38: 12358 | I38: 248815 | L38: 954 | M38: 21421 | N38: 22375 | O38: 271190 | P38: 伐 跡 | R38: 92.32
B39: 成長 | C39: 30 | D39: 374.9 | E39: 5.4 | F39: 637.1 | G39: 2152.1 | H39: 257.2 | I39: 3456.7 | L39: 18.1 | M39: 421.3 | N39: 439.4 | O39: 3896.1 | P39: 未立木地 | R39: 1725.96
A40: 12 | B40: 面積 | C40: 14.25 | D40: 28.13 | E40: 2.35 | F40: 594.95 | G40: 2102.4 | H40: 112.35 | I40: 2854.43 | L40: 19.39 | M40: 428.66 | N40: 448.05 | O40: 3302.48 | P40: 岩石地 | R40: 87.06
B41: 蓄積 | C41: 4850 | D41: 7453 | E41: 600 | F41: 132069 | G41: 551932 | H41: 16505 | I41: 713409 | L41: 1766 | M41: 40683 | N41: 42449 | O41: 755858 | P41: 崩壊地 | R41: 258.32
B42: 成長 | C42: 61.8 | D42: 105.6 | E42: 8.3 | F42: 1207.4 | G42: 7076 | H42: 317.8 | I42: 8776.9 | L42: 30.6 | M42: 751.8 | N42: 782.4 | O42: 9559.3 | P42: はげ山 | R42: 14.99
A43: 13 | B43: 面積 | C43: 26.17 | D43: 17.07 | E43: 5.93 | F43: 607.47 | G43: 3701.07 | H43: 247.76 | I43: 4605.47 | L43: 36.65 | M43: 881.67 | N43: 918.32 | O43: 5523.79 | P43: 施設敷 | R43: 101.85
B44: 蓄積 | C44: 9075 | D44: 4507 | E44: 1498 | F44: 138787 | G44: 987723 | H44: 35725 | I44: 1177315 | L44: 3772 | M44: 87488 | N44: 91260 | O44: 1268575 | P44: 林地開発
B45: 成長 | C45: 115.4 | D45: 63.4 | E45: 20.4 | F45: 1241.5 | G45: 12204.3 | H45: 686.4 | I45: 14331.4 | L45: 54.2 | M45: 1399.5 | N45: 1453.7 | O45: 15785.1 | P45: 計 | R45: =SUM(R38:R44) -> 2280.5
A46: 14 | B46: 面積 | C46: 40.17 | D46: 51.59 | E46: 30.42 | F46: 1015.21 | G46: 5265.55 | H46: 414.25 | I46: 6817.19 | L46: 310.82 | M46: 1575.62 | N46: 1886.44 | O46: 8703.63 | P46: 竹 林 | R46: 4.78
B47: 蓄積 | C47: 14502 | D47: 14650 | E47: 8358 | F47: 240174 | G47: 1473009 | H47: 64783 | I47: 1815476 | L47: 31978 | M47: 161535 | N47: 193513 | O47: 2008989 | P47: 更新 困難地 | Q47: 面積 | R47: 1.19
B48: 成長 | C48: 144.3 | D48: 173 | E48: 99.8 | F48: 1925.8 | G48: 15438.4 | H48: 1063.8 | I48: 18845.1 | L48: 391.6 | M48: 1889.9 | N48: 2281.5 | O48: 21126.6 | Q48: 蓄積 | R48: 229
A49: 15 以上 | B49: 面積 | C49: 122.4 | D49: 319.92 | E49: 212.31 | F49: 3553.71 | G49: 6445.63 | H49: 1332.75 | I49: 11986.72 | J49: 0.31 | L49: 928.53 | M49: 5848.64 | N49: 6777.48 | O49: 18764.2 | Q49: 成長 | R49: 2.5
B50: 蓄積 | C50: 48028 | D50: 95327 | E50: 61822 | F50: 912770 | G50: 1832078 | H50: 271904 | I50: 3221929 | J50: 28 | L50: 104244 | M50: 696362 | N50: 800634 | O50: 4022563
B51: 成長 | C51: 140.3 | D51: 310.5 | E51: 128.1 | F51: 4483.1 | G51: 10149.2 | H51: 1942.9 | I51: 17154.1 | J51: 0 | L51: 614.1 | M51: 2679.8 | N51: 3293.9 | O51: 20448 | P51: 総 合 計
A52: 計 | B52: 面積 | C52: =SUM(C7,C10,C13,C16,C19,C22,C25,C28,C31,C34,C37,C40,C43,C46,C49) -> 222.16 | D52: 980.79 | E52: 257.52 | F52: 6205.96 | G52: 18401.73 | H52: 2388.16 | I52: =SUM(C52:H52) -> 28456.32 | J52: =SUM(J7,J10,J13,J16,J19,J22,J25,J28,J31,J34,J37,J40,J43,J46,J49) -> 0.31 | K52: =SUM(K7,K10,K13,K16,K19,K22,K25,K28,K31,K34,K37,K40,K43,K46,K49) -> 0 | L52: =SUM(L7,L10,L13,L16,L19,L22,L25,L28,L31,L34,L37,L40,L43,L46,L49) -> 1341.81 | M52: =SUM(M7,M10,M13,M16,M19,M22,M25,M28,M31,M34,M37,M40,M43,M46,M49) -> 9724.79 | N52: =SUM(J52:M52) -> 11066.91 | O52: =SUM(N52,I52) -> 39523.23 | P52: 面 積 | R52: =SUM(O52,R45,R47,R46) -> 41809.7
B53: 蓄積 | C53: 82237 | D53: 287059 | E53: 73905 | F53: 1511182 | G53: 5042935 | H53: 428087 | I53: =SUM(C53:H53) -> 7425405 | J53: =SUM(J8,J11,J14,J17,J20,J23,J26,J29,J32,J35,J38,J41,J44,J47,J50) -> 28 | K53: 0 | L53: 146529 | M53: 1060724 | N53: =SUM(J53:M53) -> 1207281 | O53: 8632686 | P53: 蓄 積 | R53: =O53+R48 -> 8632915
B54: 成長 | C54: 552.4 | D54: 4554.9 | E54: 294.4 | F54: 10027.5 | G54: 47805.2 | H54: 5252.5 | I54: =SUM(C54:H54) -> 68486.9 | J54: 0 | K54: 0 | L54: 1237.5 | M54: 8747.5 | N54: =SUM(J54:M54) -> 9985 | O54: 78471.9 | P54: 成長量 | R54: =O54+R49 -> 78474.4

Sheet 上伊那
A1: 第4表 地域振興局別・資源構成表
A3: 上伊那地域振興局 | O3: 単位 面積 : ha、蓄積 成長量 : ㎥
B4: 樹種 | C4: 針 葉 樹 | J4: 広 葉 樹 | O4: 計
C5: ス ギ | D5: ヒ ノ キ | E5: サ ワ ラ | F5: ア カ マ ツ | G5: カ ラ マ ツ | H5: そ の 他 針 | I5: 小 計 | J5: ク ヌ ギ | K5: ブ ナ | L5: ナ ラ | M5: そ の 他 広 | N5: 小 計
A6: 齢級
A7: 1 | B7: 面積 | C7: 0.29 | D7: 19.81 | G7: 24.98 | H7: 0.04 | I7: 45.12 | J7: 0.32 | L7: 17.65 | M7: 5.8 | N7: 23.77 | O7: =I7+N7 -> 68.89
B8: 蓄積 | C8: 0 | D8: 0 | G8: 0 | H8: 0 | I8: 0 | J8: 0 | L8: 0 | M8: 0 | N8: 0 | O8: 0
B9: 成長 | C9: 0 | D9: 0 | G9: 0 | H9: 0 | I9: 0 | J9: 0 | L9: 0 | M9: 0 | N9: 0 | O9: 0
A10: 2 | B10: 面積 | C10: 1.65 | D10: 21.63 | E10: 0.37 | G10: 22.51 | I10: 46.16 | J10: 0.02 | L10: 7.4 | M10: 25.38 | N10: 32.8 | O10: 78.96
B11: 蓄積 | C11: 0 | D11: 0 | E11: 0 | G11: 0 | I11: 0 | J11: 10 | L11: 95 | M11: 319 | N11: 424 | O11: 424
B12: 成長 | C12: 0 | D12: 0 | E12: 0 | G12: 0 | I12: 0 | J12: 2.4 | L12: 11.8 | M12: 45 | N12: 59.2 | O12: 59.2
A13: 3 | B13: 面積 | D13: 14.45 | F13: 0.27 | G13: 0.72 | H13: 0.11 | I13: 15.55 | L13: 0.09 | M13: 7.76 | N13: 7.85 | O13: 23.4
B14: 蓄積 | D14: 592 | F14: 9 | G14: 67 | H14: 2 | I14: 670 | L14: 2 | M14: 174 | N14: 176 | O14: 846
B15: 成長 | D15: 113.8 | F15: 1.2 | G15: 5.6 | H15: 0.3 | I15: 120.9 | L15: 0.2 | M15: 15.6 | N15: 15.8 | O15: 136.7
A16: 4 | B16: 面積 | D16: 47.37 | E16: 0.11 | F16: 1.63 | G16: 24.59 | H16: 0.5 | I16: 74.2 | K16: 0.61 | L16: 18.19 | M16: 27.64 | N16: 46.44 | O16: 120.64
B17: 蓄積 | D17: 4308 | E17: 7 | F17: 125 | G17: 2239 | H17: 17 | I17: 6696 | K17: 10 | L17: 586 | M17: 990 | N17: 1586 | O17: 8282
B18: 成長 | D18: 393.7 | E18: 0.6 | F18: 10.3 | G18: 132 | H18: 1.4 | I18: 538 | K18: 0.9 | L18: 39.1 | M18: 67.3 | N18: 107.3 | O18: 645.3
A19: 5 | B19: 面積 | C19: 0.16 | D19: 152.55 | F19: 2.16 | G19: 26.27 | H19: 0.43 | I19: 181.57 | J19: 0.42 | L19: 3.15 | M19: 41.35 | N19: 44.92 | O19: 226.49
B20: 蓄積 | C20: 28 | D20: 16784 | F20: 216 | G20: 3318 | H20: 88 | I20: 20434 | J20: 28 | K20: 1 | L20: 132 | M20: 1705 | N20: 1866 | O20: 22300
B21: 成長 | C21: 1.4 | D21: 977.4 | F21: 11.2 | G21: 156.7 | H21: 6 | I21: 1152.7 | J21: 0.9 | K21: 0.1 | L21: 6.4 | M21: 89.5 | N21: 96.9 | O21: 1249.6
A22: 6 | B22: 面積 | C22: 0.21 | D22: 163.47 | F22: 6.7 | G22: 104.85 | H22: 1.64 | I22: 276.87 | L22: 0.71 | M22: 121.91 | N22: 122.62 | O22: 399.49
B23: 蓄積 | C23: 41 | D23: 30446 | F23: 887 | G23: 15113 | H23: 876 | I23: 47363 | L23: 34 | M23: 5990 | N23: 6024 | O23: 53387
B24: 成長 | C24: 1.5 | D24: 1310 | F24: 32.8 | G24: 350.1 | H24: 44.1 | I24: 1738.5 | L24: 1.3 | M24: 244.4 | N24: 245.7 | O24: 1984.2
A25: 7 | B25: 面積 | C25: 2.31 | D25: 281.56 | F25: 32.52 | G25: 104.14 | H25: 4.49 | I25: 425.02 | J25: 0.39 | K25: 1.56 | L25: 10.81 | M25: 125.38 | N25: 138.14 | O25: 563.16
B26: 蓄積 | C26: 513 | D26: 62847 | F26: 3852 | G26: 18506 | H26: 306 | I26: 86024 | J26: 32 | K26: 37 | L26: 659 | M26: 7471 | N26: 8199 | O26: 94223
B27: 成長 | C27: 13.1 | D27: 2035.4 | F27: 104 | G27: 409.4 | H27: 13.8 | I27: 2575.7 | J27: 0.1 | K27: 2.1 | L27: 21.3 | M27: 230.3 | N27: 253.8 | O27: 2829.5
A28: 8 | B28: 面積 | C28: 8.36 | D28: 339.7 | F28: 50.25 | G28: 205.27 | H28: 28.51 | I28: 632.09 | J28: 1.02 | L28: 20.76 | M28: 307.54 | N28: 329.32 | O28: 961.41
B29: 蓄積 | C29: 2460 | D29: 70881 | F29: 10545 | G29: 41270 | H29: 3724 | I29: 128880 | J29: 88 | L29: 1450 | M29: 20709 | N29: 22247 | O29: 151127
B30: 成長 | C30: 56.9 | D30: 1852.8 | F30: 215.6 | G30: 872.1 | H30: 137.7 | I30: 3135.1 | J30: 0.2 | L30: 42 | M30: 625.3 | N30: 667.5 | O30: 3802.6
A31: 9 | B31: 面積 | C31: 17.56 | D31: 524.39 | F31: 116.86 | G31: 327.98 | H31: 55.49 | I31: 1042.28 | J31: 1.59 | L31: 30.32 | M31: 237.54 | N31: 269.45 | O31: 1311.73
B32: 蓄積 | C32: 4976 | D32: 113567 | F32: 21811 | G32: 64170 | H32: 6315 | I32: 210839 | J32: 141 | L32: 2464 | M32: 18790 | N32: 21395 | O32: 232234
B33: 成長 | C33: 86.6 | D33: 2397.1 | F33: 335.1 | G33: 1177.8 | H33: 192.6 | I33: 4189.2 | J33: 0.1 | L33: 66.3 | M33: 525.6 | N33: 592 | O33: 4781.2
A34: 10 | B34: 面積 | C34: 28.86 | D34: 808.65 | E34: 3.18 | F34: 405.01 | G34: 866.3 | H34: 121.44 | I34: 2233.44 | J34: 0.27 | L34: 16.21 | M34: 537.83 | N34: 554.31 | O34: 2787.75
B35: 蓄積 | C35: 8732 | D35: 185082 | E35: 748 | F35: 82891 | G35: 192424 | H35: 15437 | I35: 485314 | J35: 25 | L35: 1507 | M35: 46918 | N35: 48450 | O35: 533764
B36: 成長 | C36: 122.9 | D36: 3355.7 | E36: 13.5 | F36: 1091.8 | G36: 2918.3 | H36: 457.7 | I36: 7959.9 | J36: 0 | L36: 36.1 | M36: 1193.5 | N36: 1229.6 | O36: 9189.5
A37: 11 | B37: 面積 | C37: 51.55 | D37: 838.95 | E37: 10.96 | F37: 1242.54 | G37: 1555.98 | H37: 32.22 | I37: 3732.2 | J37: 0.9 | L37: 11.26 | M37: 535.86 | N37: 548.02 | O37: 4280.22
B38: 蓄積 | C38: 16676 | D38: 208065 | E38: 2004 | F38: 273483 | G38: 386966 | H38: 4395 | I38: 891589 | J38: 77 | L38: 1155 | M38: 51301 | N38: 52533 | O38: 944122 | P38: 伐 跡 | R38: 35.44
B39: 成長 | C39: 231.2 | D39: 3342.8 | E39: 32 | F39: 3017 | G39: 5418.8 | H39: 95.4 | I39: 12137.2 | J39: 0 | L39: 23 | M39: 1003.9 | N39: 1026.9 | O39: 13164.1 | P39: 未立木地 | R39: 253.47
A40: 12 | B40: 面積 | C40: 147.86 | D40: 369.67 | E40: 1.05 | F40: 2947.49 | G40: 3789.63 | H40: 15.78 | I40: 7271.48 | J40: 1.46 | L40: 28.08 | M40: 847.97 | N40: 877.51 | O40: 8148.99 | P40: 岩石地 | R40: 122.18
B41: 蓄積 | C41: 50857 | D41: 98049 | E41: 262 | F41: 675183 | G41: 978538 | H41: 2454 | I41: 1805343 | J41: 132 | L41: 2973 | M41: 88744 | N41: 91849 | O41: 1897192 | P41: 崩壊地 | R41: 513.16
B42: 成長 | C42: 657.3 | D42: 1379.8 | E42: 3.6 | F42: 6135.4 | G42: 12484.5 | H42: 47.3 | I42: 20707.9 | J42: 0 | L42: 57.5 | M42: 1687.5 | N42: 1745 | O42: 22452.9 | P42: はげ山 | R42: 7.39
A43: 13 | B43: 面積 | C43: 242.48 | D43: 267.03 | E43: 1.6 | F43: 3360.72 | G43: 5695.2 | H43: 44.72 | I43: 9611.75 | J43: 4.45 | L43: 42.67 | M43: 1170.44 | N43: 1217.56 | O43: 10829.31 | P43: 施設敷 | R43: 148.47
B44: 蓄積 | C44: 85593 | D44: 76421 | E44: 435 | F44: 783733 | G44: 1467808 | H44: 6216 | I44: 2420206 | J44: 395 | L44: 4906 | M44: 130317 | N44: 135618 | O44: 2555824 | P44: 林地開発 | R44: 14.17
B45: 成長 | C45: 1063.6 | D45: 1056.6 | E45: 6.1 | F45: 7040 | G45: 18164.9 | H45: 118.2 | I45: 27449.4 | J45: 0 | L45: 79 | M45: 2076.5 | N45: 2155.5 | O45: 29604.9 | P45: 計 | R45: =SUM(R38:R44) -> 1094.28
A46: 14 | B46: 面積 | C46: 462.51 | D46: 337.73 | E46: 10.57 | F46: 3749.95 | G46: 6657.41 | H46: 33.27 | I46: 11251.44 | J46: 10.22 | L46: 147.18 | M46: 2643.01 | N46: 2800.41 | O46: 14051.85 | P46: 竹 林 | R46: 258.75
B47: 蓄積 | C47: 169070 | D47: 91199 | E47: 2927 | F47: 910119 | G47: 1922586 | H47: 5465 | I47: 3101366 | J47: 922 | L47: 18047 | M47: 312553 | N47: 331522 | O47: 3432888 | P47: 更新 困難地 | Q47: 面積 | R47: 7.71
B48: 成長 | C48: 1684 | D48: 1093 | E48: 35.8 | F48: 7293.3 | G48: 20484.4 | H48: 87.8 | I48: 30678.3 | J48: 0 | L48: 192.4 | M48: 3454.9 | N48: 3647.3 | O48: 34325.6 | Q48: 蓄積 | R48: 1007
A49: 15 以上 | B49: 面積 | C49: 518.47 | D49: 1288.6 | E49: 63.35 | F49: 6895.21 | G49: 6559.43 | H49: 498.39 | I49: 15823.45 | J49: 45.72 | K49: 7.88 | L49: 369.45 | M49: 10003.25 | N49: 10426.3 | O49: 26249.75 | Q49: 成長 | R49: 0.3
B50: 蓄積 | C50: 202102 | D50: 396954 | E50: 19402 | F50: 1832975 | G50: 1969159 | H50: 107189 | I50: 4527781 | J50: 4066 | K50: 1095 | L50: 48515 | M50: 1248059 | N50: 1301735 | O50: 5829516
B51: 成長 | C51: 912.8 | D51: 1106.5 | E51: 32.9 | F51: 9603 | G51: 13553.7 | H51: 749.1 | I51: 25958 | J51: 0 | K51: 0 | L51: 223.9 | M51: 5830.8 | N51: 6054.7 | O51: 32012.7 | P51: 総 合 計
A52: 計 | B52: 面積 | C52: =SUM(C7,C10,C13,C16,C19,C22,C25,C28,C31,C34,C37,C40,C43,C46,C49) -> 1482.27 | D52: 5475.56 | E52: 91.19 | F52: 18811.31 | G52: 25965.26 | H52: 837.03 | I52: =SUM(C52:H52) -> 52662.62 | J52: =SUM(J7,J10,J13,J16,J19,J22,J25,J28,J31,J34,J37,J40,J43,J46,J49) -> 66.78 | K52: =SUM(K7,K10,K13,K16,K19,K22,K25,K28,K31,K34,K37,K40,K43,K46,K49) -> 10.05 | L52: =SUM(L7,L10,L13,L16,L19,L22,L25,L28,L31,L34,L37,L40,L43,L46,L49) -> 723.93 | M52: =SUM(M7,M10,M13,M16,M19,M22,M25,M28,M31,M34,M37,M40,M43,M46,M49) -> 16638.66 | N52: =SUM(J52:M52) -> 17439.42 | O52: =SUM(N52,I52) -> 70102.04 | P52: 面 積 | R52: =SUM(O52,R45,R47,R46) -> 71462.78
B53: 蓄積 | C53: 541048 | D53: 1355195 | E53: 25785 | F53: 4595829 | G53: 7062164 | H53: 152484 | I53: =SUM(C53:H53) -> 13732505 | J53: =SUM(J8,J11,J14,J17,J20,J23,J26,J29,J32,J35,J38,J41,J44,J47,J50) -> 5916 | K53: 1143 | L53: 82525 | M53: 1934040 | N53: =SUM(J53:M53) -> 2023624 | O53: 15756129 | P53: 蓄 積 | R53: =O53+R48 -> 15757136
B54: 成長 | C54: 4831.3 | D54: 20414.6 | E54: 124.5 | F54: 34890.7 | G54: 76128.3 | H54: 1951.4 | I54: =SUM(C54:H54) -> 138340.8 | J54: 3.7 | K54: 3.1 | L54: 800.3 | M54: 17090.1 | N54: =SUM(J54:M54) -> 17897.2 | O54: 156238 | P54: 成長量 | R54: =O54+R49 -> 156238.3

Sheet 南信州
A1: 第4表 地域振興局別・資源構成表
A3: 南信州地域振興局 | O3: 単位 面積 : ha、蓄積 成長量 : ㎥
B4: 樹種 | C4: 針 葉 樹 | J4: 広 葉 樹 | O4: 計
C5: ス ギ | D5: ヒ ノ キ | E5: サ ワ ラ | F5: ア カ マ ツ | G5: カ ラ マ ツ | H5: そ の 他 針 | I5: 小 計 | J5: ク ヌ ギ | K5: ブ ナ | L5: ナ ラ | M5: そ の 他 広 | N5: 小 計
A6: 齢級
A7: 1 | B7: 面積 | C7: 4.25 | D7: 18.42 | F7: 0.51 | G7: 16.37 | I7: 39.55 | L7: 0.44 | M7: 3.78 | N7: 4.22 | O7: =I7+N7 -> 43.77
B8: 蓄積 | C8: 0 | D8: 0 | F8: 0 | G8: 0 | I8: 0 | L8: 0 | M8: 0 | N8: 0 | O8: 0
B9: 成長 | C9: 0 | D9: 0 | F9: 0 | G9: 0 | I9: 0 | L9: 0 | M9: 0 | N9: 0 | O9: 0
A10: 2 | B10: 面積 | C10: 1.85 | D10: 26.05 | G10: 14.87 | H10: 0.22 | I10: 42.99 | L10: 12.51 | M10: 23.03 | N10: 35.54 | O10: 78.53
B11: 蓄積 | C11: 0 | D11: 0 | G11: 0 | H11: 0 | I11: 0 | L11: 163 | M11: 310 | N11: 473 | O11: 473
B12: 成長 | C12: 0 | D12: 0 | G12: 0 | H12: 0 | I12: 0 | L12: 23.7 | M12: 43.9 | N12: 67.6 | O12: 67.6
A13: 3 | B13: 面積 | C13: 1.69 | D13: 18.42 | I13: 20.11 | L13: 4.66 | M13: 40.07 | N13: 44.73 | O13: 64.84
B14: 蓄積 | C14: 176 | D14: 845 | I14: 1021 | L14: 102 | M14: 864 | N14: 966 | O14: 1987
B15: 成長 | C15: 35.7 | D15: 183.2 | I15: 218.9 | L15: 8.7 | M15: 74.2 | N15: 82.9 | O15: 301.8
A16: 4 | B16: 面積 | C16: 8.91 | D16: 278.79 | E16: 7.89 | F16: 4.52 | G16: 2.43 | H16: 0.87 | I16: 303.41 | L16: 15.74 | M16: 118 | N16: 133.74 | O16: 437.15
B17: 蓄積 | C17: 1094 | D17: 22171 | E17: 649 | F17: 385 | G17: 711 | H17: 30 | I17: 25040 | L17: 507 | M17: 3459 | N17: 3966 | O17: 29006
B18: 成長 | C18: 87.8 | D18: 2034.3 | E18: 60.7 | F18: 31.6 | G18: 53.4 | H18: 2.4 | I18: 2270.2 | L18: 33.3 | M18: 226.6 | N18: 259.9 | O18: 2530.1
A19: 5 | B19: 面積 | C19: 7.61 | D19: 342.68 | E19: 1.36 | F19: 4.2 | G19: 0.21 | H19: 0.35 | I19: 356.41 | K19: 0.56 | L19: 10.42 | M19: 143.68 | N19: 154.66 | O19: 511.07
B20: 蓄積 | C20: 2064 | D20: 48255 | E20: 100 | F20: 431 | G20: 27 | H20: 18 | I20: 50895 | K20: 15 | L20: 415 | M20: 6609 | N20: 7039 | O20: 57934
B21: 成長 | C21: 101.5 | D21: 2952.9 | E21: 6.7 | F21: 22.4 | G21: 1.5 | H21: 1.3 | I21: 3086.3 | K21: 1.1 | L21: 19.7 | M21: 314.3 | N21: 335.1 | O21: 3421.4
A22: 6 | B22: 面積 | C22: 18.17 | D22: 721.35 | E22: 0.05 | F22: 12.09 | G22: 5.15 | H22: 3.61 | I22: 760.42 | J22: 0.07 | L22: 5.89 | M22: 338.26 | N22: 344.22 | O22: 1104.64
B23: 蓄積 | C23: 7275 | D23: 118130 | E23: 6 | F23: 1136 | G23: 785 | H23: 182 | I23: 127514 | J23: 5 | L23: 606 | M23: 16776 | N23: 17387 | O23: 144901
B24: 成長 | C24: 269.2 | D24: 4982.4 | E24: 0.3 | F24: 41.9 | G24: 28.2 | H24: 9.8 | I24: 5331.8 | J24: 0.1 | L24: 22.9 | M24: 636.7 | N24: 659.7 | O24: 5991.5
A25: 7 | B25: 面積 | C25: 17.33 | D25: 1380.62 | E25: 0.51 | F25: 28.9 | G25: 12.02 | H25: 5.06 | I25: 1444.44 | J25: 2.23 | L25: 40.87 | M25: 724.77 | N25: 767.87 | O25: 2212.31
B26: 蓄積 | C26: 6320 | D26: 253806 | E26: 60 | F26: 4656 | G26: 1887 | H26: 1027 | I26: 267756 | J26: 176 | L26: 3297 | M26: 44018 | N26: 47491 | O26: 315247
B27: 成長 | C27: 165.2 | D27: 8678.1 | E27: 2.2 | F27: 112.2 | G27: 52.9 | H27: 45.1 | I27: 9055.7 | J27: 0.3 | L27: 105.8 | M27: 1417.8 | N27: 1523.9 | O27: 10579.6
A28: 8 | B28: 面積 | C28: 29.91 | D28: 2163.78 | E28: 0.07 | F28: 28.84 | G28: 72.99 | H28: 42.41 | I28: 2338 | J28: 0.71 | L28: 62.94 | M28: 808.58 | N28: 872.23 | O28: 3210.23
B29: 蓄積 | C29: 8170 | D29: 405596 | E29: 12 | F29: 4967 | G29: 16846 | H29: 7386 | I29: 442977 | J29: 57 | L29: 4487 | M29: 55441 | N29: 59985 | O29: 502962
B30: 成長 | C30: 188.8 | D30: 10695.7 | E30: 0.3 | F30: 99.2 | G30: 417.6 | H30: 273 | I30: 11674.6 | J30: 0.1 | L30: 129.9 | M30: 1595.7 | N30: 1725.7 | O30: 13400.3
A31: 9 | B31: 面積 | C31: 108.32 | D31: 2872.95 | E31: 2.09 | F31: 57 | G31: 235.23 | H31: 54.87 | I31: 3330.46 | J31: 0.51 | L31: 66.95 | M31: 876.48 | N31: 943.94 | O31: 4274.4
B32: 蓄積 | C32: 34443 | D32: 598725 | E32: 349 | F32: 11031 | G32: 48058 | H32: 7537 | I32: 700143 | J32: 42 | L32: 5519 | M32: 68396 | N32: 73957 | O32: 774100
B33: 成長 | C33: 583.2 | D33: 13172.6 | E33: 7.6 | F33: 167 | G33: 950.3 | H33: 248.9 | I33: 15129.6 | J33: 0 | L33: 148.1 | M33: 1826.6 | N33: 1974.7 | O33: 17104.3
A34: 10 | B34: 面積 | C34: 298.48 | D34: 4145.09 | E34: 1.87 | F34: 259.37 | G34: 708.17 | H34: 132.92 | I34: 5545.9 | J34: 0.04 | K34: 3.86 | L34: 56 | M34: 1048.79 | N34: 1108.69 | O34: 6654.59
B35: 蓄積 | C35: 98130 | D35: 927561 | E35: 432 | F35: 53376 | G35: 158869 | H35: 15023 | I35: 1253391 | J35: 4 | K35: 311 | L35: 5063 | M35: 89069 | N35: 94447 | O35: 1347838
B36: 成長 | C36: 1428.4 | D36: 16776.2 | E36: 7.8 | F36: 655.5 | G36: 2376.2 | H36: 411.8 | I36: 21655.9 | J36: 0 | K36: 7.5 | L36: 121.5 | M36: 2087.1 | N36: 2216.1 | O36: 23872
A37: 11 | B37: 面積 | C37: 648.08 | D37: 3990.35 | E37: 4.89 | F37: 1144.58 | G37: 1270.03 | H37: 177.44 | I37: 7235.37 | J37: 0.4 | K37: 25.25 | L37: 54.38 | M37: 1839.96 | N37: 1919.99 | O37: 9155.36
B38: 蓄積 | C38: 227327 | D38: 975607 | E38: 1186 | F38: 246381 | G38: 319742 | H38: 24336 | I38: 1794579 | J38: 32 | K38: 2456 | L38: 5445 | M38: 168591 | N38: 176524 | O38: 1971103 | P38: 伐 跡 | R38: 41.09
B39: 成長 | C39: 2997 | D39: 15715.9 | E39: 19.6 | F39: 2761.5 | G39: 4470.4 | H39: 576.5 | I39: 26540.9 | J39: 0 | K39: 63.9 | L39: 107.8 | M39: 3250.1 | N39: 3421.8 | O39: 29962.7 | P39: 未立木地 | R39: 841.89
A40: 12 | B40: 面積 | C40: 1626.05 | D40: 2575.37 | E40: 2.46 | F40: 4006.53 | G40: 2746.48 | H40: 87.3 | I40: 11044.19 | J40: 3.27 | K40: 7.82 | L40: 130.34 | M40: 3374.24 | N40: 3515.67 | O40: 14559.86 | P40: 岩石地 | R40: 335.44
B41: 蓄積 | C41: 597326 | D41: 666345 | E41: 647 | F41: 898279 | G41: 722682 | H41: 12007 | I41: 2897286 | J41: 268 | K41: 774 | L41: 13898 | M41: 329257 | N41: 344197 | O41: 3241483 | P41: 崩壊地 | R41: 2038.82
B42: 成長 | C42: 7413.4 | D42: 8788.3 | E42: 8.3 | F42: 9968.2 | G42: 9256.9 | H42: 228.6 | I42: 35663.7 | J42: 0 | K42: 20.1 | L42: 261.5 | M42: 6237.3 | N42: 6518.9 | O42: 42182.6 | P42: はげ山 | R42: 3.85
A43: 13 | B43: 面積 | C43: 2497.43 | D43: 1874.77 | E43: 5.58 | F43: 3678.69 | G43: 3697.36 | H43: 99.24 | I43: 11853.07 | J43: 4.15 | K43: 13.51 | L43: 260.31 | M43: 4580.08 | N43: 4858.05 | O43: 16711.12 | P43: 施設敷 | R43: 259.93
B44: 蓄積 | C44: 932408 | D44: 504665 | E44: 1526 | F44: 855163 | G44: 996767 | H44: 13093 | I44: 3303622 | J44: 335 | K44: 1254 | L44: 29956 | M44: 493215 | N44: 524760 | O44: 3828382 | P44: 林地開発 | R44: 11.6
B45: 成長 | C45: 11054 | D45: 6523.9 | E45: 19.7 | F45: 9081.8 | G45: 12450.4 | H45: 245.8 | I45: 39375.6 | J45: 0.1 | K45: 29.2 | L45: 450.9 | M45: 7690.4 | N45: 8170.6 | O45: 47546.2 | P45: 計 | R45: =SUM(R38:R44) -> 3532.62
A46: 14 | B46: 面積 | C46: 2619.73 | D46: 1467.42 | E46: 1.35 | F46: 2210.08 | G46: 4018.72 | H46: 160.93 | I46: 10478.23 | J46: 5.51 | L46: 580.86 | M46: 6709.7 | N46: 7296.07 | O46: 17774.3 | P46: 竹 林 | R46: 618.26
B47: 蓄積 | C47: 1052530 | D47: 414057 | E47: 314 | F47: 534313 | G47: 1117784 | H47: 23258 | I47: 3142256 | J47: 409 | L47: 69545 | M47: 779086 | N47: 849040 | O47: 3991296 | P47: 更新 困難地 | Q47: 面積 | R47: 10.61
B48: 成長 | C48: 9898 | D48: 4912.8 | E48: 3.7 | F48: 4224.6 | G48: 11668.1 | H48: 401.7 | I48: 31108.9 | J48: 0 | L48: 850.2 | M48: 9703.2 | N48: 10553.4 | O48: 41662.3 | Q48: 蓄積 | R48: 1284
A49: 15 以上 | B49: 面積 | C49: 3440.01 | D49: 4345.73 | E49: 53.09 | F49: 5355.03 | G49: 4338.52 | H49: 3869.33 | I49: 21401.71 | J49: 13.37 | K49: 191.29 | L49: 2244.35 | M49: 31752.83 | N49: 34201.84 | O49: 55603.55 | Q49: 成長 | R49: 15.4
B50: 蓄積 | C50: 1478463 | D50: 1322564 | E50: 16151 | F50: 1406609 | G50: 1278057 | H50: 809301 | I50: 6311145 | J50: 991 | K50: 32790 | L50: 284975 | M50: 3847557 | N50: 4166313 | O50: 10477458
B51: 成長 | C51: 4677.7 | D51: 4783.1 | E51: 20.6 | F51: 6773.2 | G51: 9492.4 | H51: 3519.6 | I51: 29266.6 | J51: 0.2 | K51: 112.2 | L51: 1925.5 | M51: 20798.2 | N51: 22836.1 | O51: 52102.7 | P51: 総 合 計
A52: 計 | B52: 面積 | C52: =SUM(C7,C10,C13,C16,C19,C22,C25,C28,C31,C34,C37,C40,C43,C46,C49) -> 11327.82 | D52: 26221.79 | E52: 81.21 | F52: 16790.34 | G52: 17138.55 | H52: 4634.55 | I52: =SUM(C52:H52) -> 76194.26 | J52: =SUM(J7,J10,J13,J16,J19,J22,J25,J28,J31,J34,J37,J40,J43,J46,J49) -> 30.26 | K52: =SUM(K7,K10,K13,K16,K19,K22,K25,K28,K31,K34,K37,K40,K43,K46,K49) -> 242.29 | L52: =SUM(L7,L10,L13,L16,L19,L22,L25,L28,L31,L34,L37,L40,L43,L46,L49) -> 3546.66 | M52: =SUM(M7,M10,M13,M16,M19,M22,M25,M28,M31,M34,M37,M40,M43,M46,M49) -> 52382.25 | N52: =SUM(J52:M52) -> 56201.46 | O52: =SUM(N52,I52) -> 132395.72 | P52: 面 積 | R52: =SUM(O52,R45,R47,R46) -> 136557.21
B53: 蓄積 | C53: 4445726 | D53: 6258327 | E53: 21432 | F53: 4016727 | G53: 4662215 | H53: 913198 | I53: =SUM(C53:H53) -> 20317625 | J53: =SUM(J8,J11,J14,J17,J20,J23,J26,J29,J32,J35,J38,J41,J44,J47,J50) -> 2319 | K53: 37600 | L53: 423978 | M53: 5902648 | N53: =SUM(J53:M53) -> 6366545 | O53: 26684170 | P53: 蓄 積 | R53: =O53+R48 -> 26685454
B54: 成長 | C54: 38899.9 | D54: 100199.4 | E54: 157.5 | F54: 33939.1 | G54: 51218.3 | H54: 5964.5 | I54: =SUM(C54:H54) -> 230378.7 | J54: 0.8 | K54: 234 | L54: 4209.5 | M54: 55902.1 | N54: =SUM(J54:M54) -> 60346.4 | O54: 290725.1 | P54: 成長量 | R54: =O54+R49 -> 290740.5

Sheet 木曽
A1: 第4表 地域振興局別・資源構成表
A3: 木曽地域振興局 | O3: 単位 面積 : ha、蓄積 成長量 : ㎥
B4: 樹種 | C4: 針 葉 樹 | J4: 広 葉 樹 | O4: 計
C5: ス ギ | D5: ヒ ノ キ | E5: サ ワ ラ | F5: ア カ マ ツ | G5: カ ラ マ ツ | H5: そ の 他 針 | I5: 小 計 | J5: ク ヌ ギ | K5: ブ ナ | L5: ナ ラ | M5: そ の 他 広 | N5: 小 計
A6: 齢級
A7: 1 | B7: 面積 | D7: 1.28 | G7: 9.97 | I7: 11.25 | M7: 11.45 | N7: 11.45 | O7: =I7+N7 -> 22.7
B8: 蓄積 | D8: 0 | G8: 0 | I8: 0 | M8: 0 | N8: 0 | O8: 0
B9: 成長 | D9: 0 | G9: 0 | I9: 0 | M9: 0 | N9: 0 | O9: 0
A10: 2 | B10: 面積 | C10: 0.2 | D10: 7.91 | G10: 8.06 | I10: 16.17 | L10: 0.39 | M10: 6.16 | N10: 6.55 | O10: 22.72
B11: 蓄積 | C11: 0 | D11: 0 | G11: 0 | I11: 0 | L11: 4 | M11: 67 | N11: 71 | O11: 71
B12: 成長 | C12: 0 | D12: 0 | G12: 0 | I12: 0 | L12: 0.6 | M12: 9 | N12: 9.6 | O12: 9.6
A13: 3 | B13: 面積 | D13: 8.88 | F13: 0.06 | I13: 8.94 | L13: 0.19 | M13: 6.17 | N13: 6.36 | O13: 15.3
B14: 蓄積 | D14: 353 | F14: 2 | I14: 355 | L14: 3 | M14: 141 | N14: 144 | O14: 499
B15: 成長 | D15: 68.2 | F15: 0.3 | I15: 68.5 | L15: 0.3 | M15: 12.8 | N15: 13.1 | O15: 81.6
A16: 4 | B16: 面積 | C16: 0.36 | D16: 32.17 | E16: 2.37 | F16: 0.26 | G16: 0.16 | H16: 0.24 | I16: 35.56 | L16: 0.27 | M16: 30.2 | N16: 30.47 | O16: 66.03
B17: 蓄積 | C17: 49 | D17: 2415 | E17: 145 | F17: 21 | G17: 15 | H17: 7 | I17: 2652 | L17: 9 | M17: 1025 | N17: 1034 | O17: 3686
B18: 成長 | C18: 4 | D18: 221.5 | E18: 13.3 | F18: 1.7 | G18: 0.9 | H18: 0.6 | I18: 242 | L18: 0.6 | M18: 69.1 | N18: 69.7 | O18: 311.7
A19: 5 | B19: 面積 | D19: 112.33 | E19: 0.1 | F19: 1.14 | G19: 1.48 | H19: 0.33 | I19: 115.38 | L19: 0.04 | M19: 31.77 | N19: 31.81 | O19: 147.19
B20: 蓄積 | D20: 11889 | E20: 11 | F20: 604 | G20: 147 | H20: 16 | I20: 12667 | L20: 2 | M20: 1237 | N20: 1239 | O20: 13906
B21: 成長 | D21: 690.9 | E21: 0.6 | F21: 30.5 | G21: 6.8 | H21: 1 | I21: 729.8 | L21: 0.1 | M21: 67 | N21: 67.1 | O21: 796.9
A22: 6 | B22: 面積 | C22: 0.04 | D22: 275.08 | E22: 0.64 | F22: 0.46 | G22: 7.95 | H22: 0.99 | I22: 285.16 | L22: 8.24 | M22: 89.77 | N22: 98.01 | O22: 383.17
B23: 蓄積 | C23: 7 | D23: 38750 | E23: 72 | F23: 67 | G23: 1202 | H23: 64 | I23: 40162 | L23: 417 | M23: 4105 | N23: 4522 | O23: 44684
B24: 成長 | C24: 0.3 | D24: 1666 | E24: 3 | F24: 2.5 | G24: 28.1 | H24: 3.3 | I24: 1703.2 | L24: 16.2 | M24: 167.4 | N24: 183.6 | O24: 1886.8
A25: 7 | B25: 面積 | C25: 0.41 | D25: 345.84 | E25: 1.17 | F25: 0.25 | G25: 7.3 | H25: 0.5 | I25: 355.47 | L25: 17.06 | M25: 131.54 | N25: 148.6 | O25: 504.07
B26: 蓄積 | C26: 96 | D26: 55857 | E26: 194 | F26: 39 | G26: 1134 | H26: 182 | I26: 57502 | L26: 1007 | M26: 7530 | N26: 8537 | O26: 66039
B27: 成長 | C27: 2.5 | D27: 1807 | E27: 6.3 | F27: 1 | G27: 25 | H27: 7.8 | I27: 1849.6 | L27: 32.9 | M27: 233 | N27: 265.9 | O27: 2115.5
A28: 8 | B28: 面積 | C28: 2.85 | D28: 849.95 | E28: 0.69 | F28: 5.54 | G28: 22.1 | H28: 12 | I28: 893.13 | L28: 24.92 | M28: 182.14 | N28: 207.06 | O28: 1100.19
B29: 蓄積 | C29: 761 | D29: 155398 | E29: 124 | F29: 913 | G29: 4204 | H29: 1310 | I29: 162710 | L29: 1735 | M29: 11861 | N29: 13596 | O29: 176306
B30: 成長 | C30: 17.3 | D30: 4065.4 | E30: 3.3 | F30: 20.1 | G30: 88.9 | H30: 48.9 | I30: 4243.9 | L30: 50.1 | M30: 358.7 | N30: 408.8 | O30: 4652.7
A31: 9 | B31: 面積 | C31: 8.55 | D31: 1333.46 | E31: 0.79 | F31: 13.55 | G31: 68.78 | H31: 12.53 | I31: 1437.66 | L31: 19.12 | M31: 306.58 | N31: 325.7 | O31: 1763.36
B32: 蓄積 | C32: 2344 | D32: 269706 | E32: 163 | F32: 2517 | G32: 15880 | H32: 1336 | I32: 291946 | L32: 1529 | M32: 23783 | N32: 25312 | O32: 317258
B33: 成長 | C33: 40 | D33: 5735.7 | E33: 3.6 | F33: 38.7 | G33: 286 | H33: 41.7 | I33: 6145.7 | L33: 41.2 | M33: 659.9 | N33: 701.1 | O33: 6846.8
A34: 10 | B34: 面積 | C34: 25.8 | D34: 1354.18 | E34: 1.64 | F34: 87.02 | G34: 90.43 | H34: 21.4 | I34: 1580.47 | L34: 47.58 | M34: 399.26 | N34: 446.84 | O34: 2027.31
B35: 蓄積 | C35: 7689 | D35: 299635 | E35: 376 | F35: 18113 | G35: 22190 | H35: 2741 | I35: 350744 | L35: 4297 | M35: 34135 | N35: 38432 | O35: 389176
B36: 成長 | C36: 108.2 | D36: 5467.1 | E36: 7 | F36: 236.4 | G36: 334.3 | H36: 81.8 | I36: 6234.8 | L36: 100.4 | M36: 867.2 | N36: 967.6 | O36: 7202.4
A37: 11 | B37: 面積 | C37: 60.52 | D37: 1495.16 | E37: 8.84 | F37: 459.41 | G37: 308.44 | H37: 27.34 | I37: 2359.71 | J37: 0.64 | L37: 98.32 | M37: 846.82 | N37: 945.78 | O37: 3305.49
B38: 蓄積 | C38: 18966 | D38: 357813 | E38: 2098 | F38: 100738 | G38: 80649 | H38: 3901 | I38: 564165 | J38: 44 | L38: 9596 | M38: 82167 | N38: 91807 | O38: 655972 | P38: 伐 跡 | R38: 4.66
B39: 成長 | C39: 260.3 | D39: 5766.7 | E39: 34 | F39: 1114.4 | G39: 1129.2 | H39: 79.6 | I39: 8384.2 | J39: 0 | L39: 187 | M39: 1621.8 | N39: 1808.8 | O39: 10193 | P39: 未立木地 | R39: 140.28
A40: 12 | B40: 面積 | C40: 251.84 | D40: 1149.07 | E40: 21.84 | F40: 1057.22 | G40: 1821.84 | H40: 9.98 | I40: 4311.79 | L40: 179.56 | M40: 1504.33 | N40: 1683.89 | O40: 5995.68 | P40: 岩石地 | R40: 13.43
B41: 蓄積 | C41: 84206 | D41: 296470 | E41: 5790 | F41: 236837 | G41: 497366 | H41: 1570 | I41: 1122239 | L41: 18303 | M41: 152021 | N41: 170324 | O41: 1292563 | P41: 崩壊地 | R41: 37.8
B42: 成長 | C42: 1070.8 | D42: 4192.3 | E42: 81 | F42: 2184.4 | G42: 6411.8 | H42: 30.1 | I42: 13970.4 | L42: 344.5 | M42: 2873.7 | N42: 3218.2 | O42: 17188.6 | P42: はげ山
A43: 13 | B43: 面積 | C43: 393.31 | D43: 840.49 | E43: 27.74 | F43: 958.64 | G43: 3675.43 | H43: 15.42 | I43: 5911.03 | L43: 190.51 | M43: 2564.01 | N43: 2754.52 | O43: 8665.55 | P43: 施設敷 | R43: 159.92
B44: 蓄積 | C44: 135199 | D44: 228337 | E44: 7546 | F44: 220945 | G44: 1046691 | H44: 2606 | I44: 1641324 | L44: 21202 | M44: 276816 | N44: 298018 | O44: 1939342 | P44: 林地開発 | R44: 21.99
B45: 成長 | C45: 1645.8 | D45: 3156.8 | E45: 102.1 | F45: 2008.1 | G45: 13082.6 | H45: 48.7 | I45: 20044.1 | L45: 338 | M45: 4509.9 | N45: 4847.9 | O45: 24892 | P45: 計 | R45: =SUM(R38:R44) -> 378.08
A46: 14 | B46: 面積 | C46: 597.33 | D46: 710.18 | E46: 61.65 | F46: 1056.08 | G46: 3704.86 | H46: 31.27 | I46: 6161.37 | L46: 343.1 | M46: 3898.81 | N46: 4241.91 | O46: 10403.28 | P46: 竹 林 | R46: 76.35
B47: 蓄積 | C47: 217020 | D47: 198621 | E47: 17336 | F47: 248523 | G47: 1099990 | H47: 5729 | I47: 1787219 | L47: 39992 | M47: 445705 | N47: 485697 | O47: 2272916 | P47: 更新 困難地 | Q47: 面積 | R47: 0.06
B48: 成長 | C48: 2145.5 | D48: 2379.1 | E48: 209.7 | F48: 2055.4 | G48: 11778.3 | H48: 91.6 | I48: 18659.6 | L48: 441.6 | M48: 5120.1 | N48: 5561.7 | O48: 24221.3 | Q48: 蓄積 | R48: 6
A49: 15 以上 | B49: 面積 | C49: 533.04 | D49: 1724.26 | E49: 246.74 | F49: 2394.86 | G49: 1985.09 | H49: 381.88 | I49: 7265.87 | J49: 0.08 | L49: 1035.59 | M49: 11786.88 | N49: 12822.55 | O49: 20088.42 | Q49: 成長 | R49: 0.2
B50: 蓄積 | C50: 205423 | D50: 520108 | E50: 72428 | F50: 633703 | G50: 602099 | H50: 85431 | I50: 2119192 | J50: 6 | L50: 130278 | M50: 1452635 | N50: 1582919 | O50: 3702111
B51: 成長 | C51: 812.5 | D51: 944.4 | E51: 125.3 | F51: 2922.4 | G51: 3965.2 | H51: 517.2 | I51: 9287 | J51: 0 | L51: 662 | M51: 6154.2 | N51: 6816.2 | O51: 16103.2 | P51: 総 合 計
A52: 計 | B52: 面積 | C52: =SUM(C7,C10,C13,C16,C19,C22,C25,C28,C31,C34,C37,C40,C43,C46,C49) -> 1874.25 | D52: 10240.24 | E52: 374.21 | F52: 6034.49 | G52: 11711.89 | H52: 513.88 | I52: =SUM(C52:H52) -> 30748.96 | J52: =SUM(J7,J10,J13,J16,J19,J22,J25,J28,J31,J34,J37,J40,J43,J46,J49) -> 0.72 | K52: =SUM(K7,K10,K13,K16,K19,K22,K25,K28,K31,K34,K37,K40,K43,K46,K49) -> 0 | L52: =SUM(L7,L10,L13,L16,L19,L22,L25,L28,L31,L34,L37,L40,L43,L46,L49) -> 1964.89 | M52: =SUM(M7,M10,M13,M16,M19,M22,M25,M28,M31,M34,M37,M40,M43,M46,M49) -> 21795.89 | N52: =SUM(J52:M52) -> 23761.5 | O52: =SUM(N52,I52) -> 54510.46 | P52: 面 積 | R52: =SUM(O52,R45,R47,R46) -> 54964.95
B53: 蓄積 | C53: 671760 | D53: 2435352 | E53: 106283 | F53: 1463022 | G53: 3371567 | H53: 104893 | I53: =SUM(C53:H53) -> 8152877 | J53: =SUM(J8,J11,J14,J17,J20,J23,J26,J29,J32,J35,J38,J41,J44,J47,J50) -> 50 | K53: 0 | L53: 228374 | M53: 2493228 | N53: =SUM(J53:M53) -> 2721652 | O53: 10874529 | P53: 蓄 積 | R53: =O53+R48 -> 10874535
B54: 成長 | C54: 6107.2 | D54: 36161.1 | E54: 589.2 | F54: 10615.9 | G54: 37137.1 | H54: 952.3 | I54: =SUM(C54:H54) -> 91562.8 | J54: 0 | K54: 0 | L54: 2215.5 | M54: 22723.8 | N54: =SUM(J54:M54) -> 24939.3 | O54: 116502.1 | P54: 成長量 | R54: =O54+R49 -> 116502.3

Sheet 松本
A1: 第4表 地域振興局別・資源構成表
A3: 松本地域振興局 | O3: 単位 面積 : ha、蓄積 成長量 : ㎥
B4: 樹種 | C4: 針 葉 樹 | J4: 広 葉 樹 | O4: 計
C5: ス ギ | D5: ヒ ノ キ | E5: サ ワ ラ | F5: ア カ マ ツ | G5: カ ラ マ ツ | H5: そ の 他 針 | I5: 小 計 | J5: ク ヌ ギ | K5: ブ ナ | L5: ナ ラ | M5: そ の 他 広 | N5: 小 計
A6: 齢級
A7: 1 | B7: 面積 | C7: 4.32 | D7: 0.92 | F7: 4.43 | G7: 86.26 | I7: 95.93 | L7: 25.45 | M7: 46.85 | N7: 72.3 | O7: =I7+N7 -> 168.23
B8: 蓄積 | C8: 0 | D8: 0 | F8: 0 | G8: 0 | I8: 0 | L8: 0 | M8: 0 | N8: 0 | O8: 0
B9: 成長 | C9: 0 | D9: 0 | F9: 0 | G9: 0 | I9: 0 | L9: 0 | M9: 0 | N9: 0 | O9: 0
A10: 2 | B10: 面積 | C10: 2.62 | D10: 19.32 | F10: 0.15 | G10: 61.9 | H10: 4.82 | I10: 88.81 | J10: 0.2 | L10: 42.68 | M10: 252.86 | N10: 295.74 | O10: 384.55
B11: 蓄積 | C11: 0 | D11: 0 | F11: 0 | G11: 0 | H11: 0 | I11: 0 | J11: 6 | L11: 488 | M11: 3387 | N11: 3881 | O11: 3881
B12: 成長 | C12: 0 | D12: 0 | F12: 0 | G12: 0 | H12: 0 | I12: 0 | J12: 1.8 | L12: 67 | M12: 465.3 | N12: 534.1 | O12: 534.1
A13: 3 | B13: 面積 | D13: 13.23 | F13: 2.2 | I13: 15.43 | K13: 6.68 | M13: 59.59 | N13: 66.27 | O13: 81.7
B14: 蓄積 | D14: 402 | F14: 143 | I14: 545 | K14: 40 | M14: 1207 | N14: 1247 | O14: 1792
B15: 成長 | D15: 82.3 | F15: 19.2 | I15: 101.5 | K15: 8.7 | M15: 110.1 | N15: 118.8 | O15: 220.3
A16: 4 | B16: 面積 | C16: 0.14 | D16: 19.25 | F16: 4.06 | G16: 0.45 | H16: 0.04 | I16: 23.94 | J16: 0.32 | L16: 0.66 | M16: 64.45 | N16: 65.43 | O16: 89.37
B17: 蓄積 | C17: 11 | D17: 888 | F17: 374 | G17: 152 | H17: 1 | I17: 1426 | J17: 18 | L17: 20 | M17: 1891 | N17: 1929 | O17: 3355
B18: 成長 | C18: 1.3 | D18: 89.7 | F18: 30.7 | G18: 10.4 | H18: 0.1 | I18: 132.2 | J18: 0.8 | L18: 1.3 | M18: 128.7 | N18: 130.8 | O18: 263
A19: 5 | B19: 面積 | C19: 1.56 | D19: 77.22 | F19: 13.15 | G19: 10.74 | H19: 0.64 | I19: 103.31 | J19: 6.46 | L19: 2.45 | M19: 69.39 | N19: 78.3 | O19: 181.61
B20: 蓄積 | C20: 205 | D20: 6419 | F20: 1277 | G20: 1154 | H20: 248 | I20: 9303 | J20: 407 | K20: 48 | L20: 266 | M20: 3396 | N20: 4117 | O20: 13420
B21: 成長 | C21: 15.3 | D21: 403.4 | F21: 68.5 | G21: 63 | H21: 16.9 | I21: 567.1 | J21: 13.3 | K21: 3.8 | L21: 13.7 | M21: 180 | N21: 210.8 | O21: 777.9
A22: 6 | B22: 面積 | C22: 1.58 | D22: 131.96 | F22: 13.08 | G22: 16.2 | H22: 4.37 | I22: 167.19 | J22: 9.55 | L22: 17.16 | M22: 223.62 | N22: 250.33 | O22: 417.52
B23: 蓄積 | C23: 458 | D23: 20105 | F23: 2266 | G23: 4358 | H23: 1133 | I23: 28320 | J23: 694 | K23: 122 | L23: 1036 | M23: 11544 | N23: 13396 | O23: 41716
B24: 成長 | C24: 22.2 | D24: 1038.3 | F24: 92.7 | G24: 166.2 | H24: 61.3 | I24: 1380.7 | J24: 15.6 | K24: 8.2 | L24: 42.4 | M24: 469.4 | N24: 535.6 | O24: 1916.3
A25: 7 | B25: 面積 | C25: 11.9 | D25: 228.46 | F25: 33.66 | G25: 32.58 | H25: 5.52 | I25: 312.12 | J25: 19.92 | L25: 24.93 | M25: 414.04 | N25: 458.89 | O25: 771.01
B26: 蓄積 | C26: 2833 | D26: 32630 | E26: 7 | F26: 7308 | G26: 4971 | H26: 2040 | I26: 49789 | J26: 1541 | L26: 1457 | M26: 22618 | N26: 25616 | O26: 75405
B27: 成長 | C27: 106.4 | D27: 1337.4 | E27: 0.3 | F27: 196 | G27: 143.8 | H27: 89.6 | I27: 1873.5 | J27: 23.8 | L27: 45.2 | M27: 699.3 | N27: 768.3 | O27: 2641.8
A28: 8 | B28: 面積 | C28: 22.76 | D28: 336.54 | E28: 1.77 | F28: 120.73 | G28: 132.8 | H28: 34.07 | I28: 648.67 | J28: 54.45 | L28: 61.78 | M28: 684.55 | N28: 800.78 | O28: 1449.45
B29: 蓄積 | C29: 6976 | D29: 50644 | E29: 146 | F29: 17512 | G29: 23565 | H29: 5636 | I29: 104479 | J29: 4358 | L29: 4298 | M29: 43154 | N29: 51810 | O29: 156289
B30: 成長 | C30: 192.9 | D30: 1623.1 | E30: 5.8 | F30: 430.6 | G30: 567.2 | H30: 208.4 | I30: 3028 | J30: 40.8 | L30: 130.1 | M30: 1304.2 | N30: 1475.1 | O30: 4503.1
A31: 9 | B31: 面積 | C31: 49.29 | D31: 373.32 | E31: 0.41 | F31: 192.88 | G31: 200.85 | H31: 75.05 | I31: 891.8 | J31: 34.93 | L31: 51.92 | M31: 430.85 | N31: 517.7 | O31: 1409.5
B32: 蓄積 | C32: 16745 | D32: 52347 | E32: 61 | F32: 33246 | G32: 38320 | H32: 7918 | I32: 148637 | J32: 2863 | L32: 4036 | M32: 32146 | N32: 39045 | O32: 187682
B33: 成長 | C33: 295 | D33: 1487.7 | E33: 1.8 | F33: 524.6 | G33: 770.2 | H33: 259.7 | I33: 3339 | J33: 13.4 | L33: 111.2 | M33: 880.7 | N33: 1005.3 | O33: 4344.3
A34: 10 | B34: 面積 | C34: 135.19 | D34: 463.8 | E34: 0.41 | F34: 678.04 | G34: 681.46 | H34: 155.5 | I34: 2114.4 | J34: 70.34 | L34: 72.59 | M34: 753.31 | N34: 896.24 | O34: 3010.64
B35: 蓄積 | C35: 50212 | D35: 67798 | E35: 74 | F35: 124813 | G35: 137143 | H35: 19321 | I35: 399361 | J35: 5947 | L35: 6386 | M35: 63969 | N35: 76302 | O35: 475663
B36: 成長 | C36: 771.4 | D36: 1490.9 | E36: 1.5 | F36: 1721.8 | G36: 2285.5 | H36: 525.3 | I36: 6796.4 | J36: 14.7 | L36: 164.1 | M36: 1626.7 | N36: 1805.5 | O36: 8601.9
A37: 11 | B37: 面積 | C37: 187.09 | D37: 289.29 | E37: 1.52 | F37: 1532.15 | G37: 1392.71 | H37: 194.44 | I37: 3597.2 | J37: 30.47 | L37: 54.17 | M37: 810.29 | N37: 894.93 | O37: 4492.13
B38: 蓄積 | C38: 74507 | D38: 49175 | E38: 300 | F38: 307619 | G38: 303100 | H38: 24062 | I38: 758763 | J38: 2612 | L38: 5305 | M38: 74523 | N38: 82440 | O38: 841203 | P38: 伐 跡 | R38: 156.8
B39: 成長 | C39: 917.2 | D39: 948.7 | E39: 5.8 | F39: 3478.3 | G39: 4389.7 | H39: 564.9 | I39: 10304.6 | J39: 0 | L39: 104.3 | M39: 1440.4 | N39: 1544.7 | O39: 11849.3 | P39: 未立木地 | R39: 414.83
A40: 12 | B40: 面積 | C40: 274.19 | D40: 69.33 | E40: 0.16 | F40: 3110.37 | G40: 3808.75 | H40: 74.79 | I40: 7337.59 | J40: 46.58 | L40: 70.45 | M40: 1110.2 | N40: 1227.23 | O40: 8564.82 | P40: 岩石地 | R40: 764.57
B41: 蓄積 | C41: 114220 | D41: 11857 | E41: 34 | F41: 638587 | G41: 907737 | H41: 10318 | I41: 1682753 | J41: 4013 | L41: 7231 | M41: 110563 | N41: 121807 | O41: 1804560 | P41: 崩壊地 | R41: 461.9
B42: 成長 | C42: 1181.1 | D42: 199.5 | E42: 0.6 | F42: 6228.7 | G42: 11807.4 | H42: 195.8 | I42: 19613.1 | J42: 0 | L42: 135.4 | M42: 2033.7 | N42: 2169.1 | O42: 21782.2 | P42: はげ山 | R42: 52.14
A43: 13 | B43: 面積 | C43: 356.51 | D43: 61.3 | E43: 1.81 | F43: 3247 | G43: 6553.87 | H43: 101.21 | I43: 10321.7 | J43: 106.64 | L43: 165.38 | M43: 2534.26 | N43: 2806.28 | O43: 13127.98 | P43: 施設敷 | R43: 149.03
B44: 蓄積 | C44: 151792 | D44: 11721 | E44: 396 | F44: 690349 | G44: 1591283 | H44: 13576 | I44: 2459117 | J44: 8857 | L44: 17957 | M44: 264571 | N44: 291385 | O44: 2750502 | P44: 林地開発 | R44: 19.53
B45: 成長 | C45: 1535.4 | D45: 180.1 | E45: 5.7 | F45: 6534.7 | G45: 20178.7 | H45: 247.4 | I45: 28682 | J45: 0 | L45: 278.5 | M45: 3983.5 | N45: 4262 | O45: 32944 | P45: 計 | R45: =SUM(R38:R44) -> 2018.8
A46: 14 | B46: 面積 | C46: 415.79 | D46: 83.34 | E46: 14.82 | F46: 2310.54 | G46: 7431.44 | H46: 52.19 | I46: 10308.12 | J46: 260.62 | L46: 320.03 | M46: 5914.95 | N46: 6495.6 | O46: 16803.72 | P46: 竹 林 | R46: 225.53
B47: 蓄積 | C47: 180340 | D47: 18163 | E47: 2181 | F47: 509752 | G47: 1891652 | H47: 7404 | I47: 2609492 | J47: 22033 | L47: 36551 | M47: 654480 | N47: 713064 | O47: 3322556 | P47: 更新 困難地 | Q47: 面積 | R47: 7.86
B48: 成長 | C48: 1665.4 | D48: 244.6 | E48: 32.2 | F48: 4007.7 | G48: 20468.5 | H48: 126.8 | I48: 26545.2 | J48: 0 | L48: 396 | M48: 7302.2 | N48: 7698.2 | O48: 34243.4 | Q48: 蓄積 | R48: 340
A49: 15 以上 | B49: 面積 | C49: 904.58 | D49: 895.52 | E49: 78.65 | F49: 6677.8 | G49: 6294.63 | H49: 798.83 | I49: 15650.01 | J49: 293.41 | K49: 15.31 | L49: 599.76 | M49: 15933.3 | N49: 16841.78 | O49: 32491.79 | Q49: 成長 | R49: 6.7
B50: 蓄積 | C50: 449865 | D50: 211227 | E50: 15772 | F50: 1596867 | G50: 1720230 | H50: 171286 | I50: 4165247 | J50: 24905 | K50: 2057 | L50: 72521 | M50: 1832221 | N50: 1931704 | O50: 6096951
B51: 成長 | C51: 2425.9 | D51: 576.1 | E51: 72.8 | F51: 6170 | G51: 9566.5 | H51: 550 | I51: 19361.3 | J51: 0 | K51: 3.1 | L51: 412.7 | M51: 8905.1 | N51: 9320.9 | O51: 28682.2 | P51: 総 合 計
A52: 計 | B52: 面積 | C52: =SUM(C7,C10,C13,C16,C19,C22,C25,C28,C31,C34,C37,C40,C43,C46,C49) -> 2367.52 | D52: 3062.8 | E52: 99.55 | F52: 17940.24 | G52: 26704.64 | H52: 1501.47 | I52: =SUM(C52:H52) -> 51676.22 | J52: =SUM(J7,J10,J13,J16,J19,J22,J25,J28,J31,J34,J37,J40,J43,J46,J49) -> 933.89 | K52: =SUM(K7,K10,K13,K16,K19,K22,K25,K28,K31,K34,K37,K40,K43,K46,K49) -> 21.99 | L52: =SUM(L7,L10,L13,L16,L19,L22,L25,L28,L31,L34,L37,L40,L43,L46,L49) -> 1509.41 | M52: =SUM(M7,M10,M13,M16,M19,M22,M25,M28,M31,M34,M37,M40,M43,M46,M49) -> 29302.51 | N52: =SUM(J52:M52) -> 31767.8 | O52: =SUM(N52,I52) -> 83444.02 | P52: 面 積 | R52: =SUM(O52,R45,R47,R46) -> 85696.21
B53: 蓄積 | C53: 1048164 | D53: 533376 | E53: 18971 | F53: 3930113 | G53: 6623665 | H53: 262943 | I53: =SUM(C53:H53) -> 12417232 | J53: =SUM(J8,J11,J14,J17,J20,J23,J26,J29,J32,J35,J38,J41,J44,J47,J50) -> 78254 | K53: 2267 | L53: 157552 | M53: 3119670 | N53: =SUM(J53:M53) -> 3357743 | O53: 15774975 | P53: 蓄 積 | R53: =O53+R48 -> 15775315
B54: 成長 | C54: 9129.5 | D54: 9701.8 | E54: 126.5 | F54: 29503.5 | G54: 70417.1 | H54: 2846.2 | I54: =SUM(C54:H54) -> 121724.6 | J54: 124.2 | K54: 23.8 | L54: 1901.9 | M54: 29529.3 | N54: =SUM(J54:M54) -> 31579.2 | O54: 153303.8 | P54: 成長量 | R54: =O54+R49 -> 153310.5

Sheet 北アルプス
A1: 第4表 地域振興局別・資源構成表
A3: 北アルプス地域振興局 | O3: 単位 面積 : ha、蓄積 成長量 : ㎥
B4: 樹種 | C4: 針 葉 樹 | J4: 広 葉 樹 | O4: 計
C5: ス ギ | D5: ヒ ノ キ | E5: サ ワ ラ | F5: ア カ マ ツ | G5: カ ラ マ ツ | H5: そ の 他 針 | I5: 小 計 | J5: ク ヌ ギ | K5: ブ ナ | L5: ナ ラ | M5: そ の 他 広 | N5: 小 計
A6: 齢級
A7: 1 | B7: 面積 | C7: 1.54 | D7: 0.62 | F7: 0.11 | G7: 18.82 | I7: 21.09 | L7: 5.06 | M7: 36.75 | N7: 41.81 | O7: =I7+N7 -> 62.9
B8: 蓄積 | C8: 0 | D8: 0 | F8: 0 | G8: 0 | I8: 0 | L8: 0 | M8: 0 | N8: 0 | O8: 0
B9: 成長 | C9: 0 | D9: 0 | F9: 0 | G9: 0 | I9: 0 | L9: 0 | M9: 0 | N9: 0 | O9: 0
A10: 2 | B10: 面積 | D10: 3.28 | G10: 29.8 | I10: 33.08 | J10: 0.52 | L10: 10.23 | M10: 21.21 | N10: 31.96 | O10: 65.04
B11: 蓄積 | D11: 0 | G11: 0 | I11: 0 | J11: 9 | L11: 125 | M11: 193 | N11: 327 | O11: 327
B12: 成長 | D12: 0 | G12: 0 | I12: 0 | J12: 2.9 | L12: 18.1 | M12: 25.5 | N12: 46.5 | O12: 46.5
A13: 3 | B13: 面積 | D13: 17.77 | F13: 0.21 | I13: 17.98 | L13: 2.89 | M13: 9.45 | N13: 12.34 | O13: 30.32
B14: 蓄積 | D14: 432 | F14: 14 | I14: 446 | L14: 63 | M14: 187 | N14: 250 | O14: 696
B15: 成長 | D15: 82 | F15: 1.9 | I15: 83.9 | L15: 5.6 | M15: 18.1 | N15: 23.7 | O15: 107.6
A16: 4 | B16: 面積 | C16: 32.51 | D16: 70.62 | F16: 0.12 | G16: 0.23 | I16: 103.48 | L16: 1.6 | M16: 28.4 | N16: 30 | O16: 133.48
B17: 蓄積 | C17: 2514 | D17: 2845 | F17: 3 | G17: 17 | I17: 5379 | L17: 49 | M17: 742 | N17: 791 | O17: 6170
B18: 成長 | C18: 324 | D18: 286.5 | F18: 0.3 | G18: 1.3 | I18: 612.1 | L18: 3.4 | M18: 51.4 | N18: 54.8 | O18: 666.9
A19: 5 | B19: 面積 | C19: 29.65 | D19: 60.95 | F19: 0.9 | G19: 1.36 | H19: 0.84 | I19: 93.7 | J19: 0.6 | K19: 0.45 | L19: 3.98 | M19: 97.85 | N19: 102.88 | O19: 196.58
B20: 蓄積 | C20: 3583 | D20: 3734 | F20: 78 | G20: 118 | H20: 27 | I20: 7540 | J20: 32 | K20: 15 | L20: 159 | M20: 4253 | N20: 4459 | O20: 11999
B21: 成長 | C21: 276.6 | D21: 237.8 | F21: 3.9 | G21: 6.4 | H21: 1.8 | I21: 526.5 | J21: 1 | K21: 1.2 | L21: 8.2 | M21: 222.6 | N21: 233 | O21: 759.5
A22: 6 | B22: 面積 | C22: 25.22 | D22: 161.12 | F22: 7.06 | G22: 31.29 | H22: 0.38 | I22: 225.07 | J22: 0.14 | L22: 12.84 | M22: 290.72 | N22: 303.7 | O22: 528.77
B23: 蓄積 | C23: 4037 | D23: 11391 | F23: 736 | G23: 3564 | H23: 19 | I23: 19747 | J23: 8 | L23: 597 | M23: 11919 | N23: 12524 | O23: 32271
B24: 成長 | C24: 212.2 | D24: 610.3 | F24: 33.5 | G24: 140.7 | H24: 1 | I24: 997.7 | J24: 0.2 | L24: 24.5 | M24: 471.6 | N24: 496.3 | O24: 1494
A25: 7 | B25: 面積 | C25: 72.78 | D25: 78.59 | F25: 4.06 | G25: 23.19 | H25: 0.1 | I25: 178.72 | J25: 0.48 | K25: 6.31 | L25: 14.41 | M25: 414 | N25: 435.2 | O25: 613.92
B26: 蓄積 | C26: 15608 | D26: 8202 | F26: 562 | G26: 4774 | H26: 3 | I26: 29149 | J26: 31 | K26: 209 | L26: 754 | M26: 21187 | N26: 22181 | O26: 51330
B27: 成長 | C27: 626.2 | D27: 363.8 | F27: 15.9 | G27: 140.8 | H27: 0.1 | I27: 1146.8 | J27: 0.4 | K27: 11.8 | L27: 23.1 | M27: 651.8 | N27: 687.1 | O27: 1833.9
A28: 8 | B28: 面積 | C28: 234.58 | D28: 71.3 | F28: 6.92 | G28: 26.03 | I28: 338.83 | J28: 0.59 | K28: 1.27 | L28: 19.56 | M28: 488.22 | N28: 509.64 | O28: 848.47
B29: 蓄積 | C29: 57187 | D29: 10809 | F29: 938 | G29: 4786 | I29: 73720 | J29: 50 | K29: 46 | L29: 1198 | M29: 28233 | N29: 29527 | O29: 103247
B30: 成長 | C30: 1672.2 | D30: 353.5 | F30: 25 | G30: 114.4 | I30: 2165.1 | J30: 0.4 | K30: 2 | L30: 36 | M30: 860.2 | N30: 898.6 | O30: 3063.7
A31: 9 | B31: 面積 | C31: 316.93 | D31: 161.55 | E31: 0.1 | F31: 29.51 | G31: 26.07 | H31: 2.56 | I31: 536.72 | J31: 3.63 | K31: 15.13 | L31: 21.48 | M31: 579.77 | N31: 620.01 | O31: 1156.73
B32: 蓄積 | C32: 88246 | D32: 22297 | E32: 9 | F32: 4764 | G32: 4753 | H32: 240 | I32: 120309 | J32: 270 | K32: 738 | L32: 1515 | M32: 38766 | N32: 41289 | O32: 161598
B33: 成長 | C33: 1681.7 | D33: 655 | E33: 0.3 | F33: 77.3 | G33: 92.7 | H33: 7.6 | I33: 2514.6 | J33: 1 | K33: 26.5 | L33: 40 | M33: 1016.8 | N33: 1084.3 | O33: 3598.9
A34: 10 | B34: 面積 | C34: 548.67 | D34: 212.91 | E34: 0.11 | F34: 127.02 | G34: 52.58 | H34: 30.7 | I34: 971.99 | J34: 6.72 | K34: 6.23 | L34: 65.36 | M34: 718.61 | N34: 796.92 | O34: 1768.91
B35: 蓄積 | C35: 171463 | D35: 27117 | E35: 21 | F35: 22080 | G35: 11663 | H35: 3656 | I35: 236000 | J35: 482 | K35: 349 | L35: 5290 | M35: 54708 | N35: 60829 | O35: 296829
B36: 成長 | C36: 2772.1 | D36: 628.7 | E36: 0.4 | F36: 313.7 | G36: 186 | H36: 100.2 | I36: 4001.1 | J36: 0.9 | K36: 10.8 | L36: 134.8 | M36: 1391.1 | N36: 1537.6 | O36: 5538.7
A37: 11 | B37: 面積 | C37: 921.69 | D37: 135.38 | E37: 1.43 | F37: 369.21 | G37: 50.89 | H37: 39.7 | I37: 1518.3 | J37: 0.3 | K37: 75.4 | L37: 35.62 | M37: 768.59 | N37: 879.91 | O37: 2398.21
B38: 蓄積 | C38: 313579 | D38: 17424 | E38: 172 | F38: 65702 | G38: 11003 | H38: 4710 | I38: 412590 | J38: 19 | K38: 4172 | L38: 3102 | M38: 65583 | N38: 72876 | O38: 485466 | P38: 伐 跡 | R38: 61.17
B39: 成長 | C39: 4097.9 | D39: 384.5 | E39: 4.1 | F39: 767.5 | G39: 160.5 | H39: 109.9 | I39: 5524.4 | J39: 0 | K39: 109.5 | L39: 58.1 | M39: 1224.1 | N39: 1391.7 | O39: 6916.1 | P39: 未立木地 | R39: 270.69
A40: 12 | B40: 面積 | C40: 1078.61 | D40: 44.53 | F40: 685.08 | G40: 232.54 | H40: 11.72 | I40: 2052.48 | J40: 0.35 | K40: 49.03 | L40: 102.32 | M40: 1472.88 | N40: 1624.58 | O40: 3677.06 | P40: 岩石地 | R40: 1576.85
B41: 蓄積 | C41: 391899 | D41: 5689 | F41: 131779 | G41: 53564 | H41: 1500 | I41: 584431 | J41: 24 | K41: 3892 | L41: 9176 | M41: 134254 | N41: 147346 | O41: 731777 | P41: 崩壊地 | R41: 187.79
B42: 成長 | C42: 4314.6 | D42: 108.1 | F42: 1347.6 | G42: 700.2 | H42: 28.7 | I42: 6499.2 | J42: 0 | K42: 91.5 | L42: 165.1 | M42: 2419.5 | N42: 2676.1 | O42: 9175.3 | P42: はげ山 | R42: 0.76
A43: 13 | B43: 面積 | C43: 1016.05 | D43: 48.58 | F43: 680.1 | G43: 765.75 | H43: 2.44 | I43: 2512.92 | J43: 5.17 | K43: 80.26 | L43: 153.48 | M43: 2463.16 | N43: 2702.07 | O43: 5214.99 | P43: 施設敷 | R43: 34.01
B44: 蓄積 | C44: 375994 | D44: 7856 | F44: 135052 | G44: 176343 | H44: 336 | I44: 695581 | J44: 369 | K44: 5646 | L44: 15049 | M44: 231445 | N44: 252509 | O44: 948090 | P44: 林地開発 | R44: 47.48
B45: 成長 | C45: 4051.8 | D45: 137 | F45: 1320.2 | G45: 2219.4 | H45: 6.4 | I45: 7734.8 | J45: 0 | K45: 133.7 | L45: 238 | M45: 3632.7 | N45: 4004.4 | O45: 11739.2 | P45: 計 | R45: =SUM(R38:R44) -> 2178.75
A46: 14 | B46: 面積 | C46: 914.19 | D46: 25.1 | F46: 470.51 | G46: 968.08 | H46: 4.68 | I46: 2382.56 | J46: 14.71 | K46: 22.04 | L46: 238.91 | M46: 3089.76 | N46: 3365.42 | O46: 5747.98 | P46: 竹 林 | R46: 29.14
B47: 蓄積 | C47: 352935 | D47: 4712 | F47: 98412 | G47: 241130 | H47: 696 | I47: 697885 | J47: 1145 | K47: 1893 | L47: 25127 | M47: 309757 | N47: 337922 | O47: 1035807 | P47: 更新 困難地 | Q47: 面積 | R47: 84.38
B48: 成長 | C48: 3424.6 | D48: 64.9 | F48: 792.6 | G48: 2538.7 | H48: 12.4 | I48: 6833.2 | J48: 0 | K48: 37 | L48: 296 | M48: 3668.1 | N48: 4001.1 | O48: 10834.3 | Q48: 蓄積 | R48: 24471
A49: 15 以上 | B49: 面積 | C49: 1704.8 | D49: 154 | E49: 6.93 | F49: 1404.23 | G49: 1188.41 | H49: 405.57 | I49: 4863.94 | J49: 53.11 | K49: 1846.28 | L49: 1084.25 | M49: 17403.17 | N49: 20386.81 | O49: 25250.75 | Q49: 成長 | R49: 0
B50: 蓄積 | C50: 745959 | D50: 31826 | E50: 1298 | F50: 324788 | G50: 321842 | H50: 87134 | I50: 1512847 | J50: 4039 | K50: 232269 | L50: 120308 | M50: 1845742 | N50: 2202358 | O50: 3715205
B51: 成長 | C51: 4359.1 | D51: 90.7 | E51: 2.7 | F51: 1278.7 | G51: 1744.7 | H51: 363.3 | I51: 7839.2 | J51: 0 | K51: 1183.1 | L51: 460.3 | M51: 4955.8 | N51: 6599.2 | O51: 14438.4 | P51: 総 合 計
A52: 計 | B52: 面積 | C52: =SUM(C7,C10,C13,C16,C19,C22,C25,C28,C31,C34,C37,C40,C43,C46,C49) -> 6897.22 | D52: 1246.3 | E52: 8.57 | F52: 3785.04 | G52: 3415.04 | H52: 498.69 | I52: =SUM(C52:H52) -> 15850.86 | J52: =SUM(J7,J10,J13,J16,J19,J22,J25,J28,J31,J34,J37,J40,J43,J46,J49) -> 86.32 | K52: =SUM(K7,K10,K13,K16,K19,K22,K25,K28,K31,K34,K37,K40,K43,K46,K49) -> 2102.4 | L52: =SUM(L7,L10,L13,L16,L19,L22,L25,L28,L31,L34,L37,L40,L43,L46,L49) -> 1771.99 | M52: =SUM(M7,M10,M13,M16,M19,M22,M25,M28,M31,M34,M37,M40,M43,M46,M49) -> 27882.54 | N52: =SUM(J52:M52) -> 31843.25 | O52: =SUM(N52,I52) -> 47694.11 | P52: 面 積 | R52: =SUM(O52,R45,R47,R46) -> 49986.38
B53: 蓄積 | C53: 2523004 | D53: 154334 | E53: 1500 | F53: 784908 | G53: 833557 | H53: 98321 | I53: =SUM(C53:H53) -> 4395624 | J53: =SUM(J8,J11,J14,J17,J20,J23,J26,J29,J32,J35,J38,J41,J44,J47,J50) -> 6478 | K53: 249229 | L53: 182512 | M53: 2746969 | N53: =SUM(J53:M53) -> 3185188 | O53: 7580812 | P53: 蓄 積 | R53: =O53+R48 -> 7605283
B54: 成長 | C54: 27813 | D54: 4002.8 | E54: 7.5 | F54: 5978.1 | G54: 8045.8 | H54: 631.4 | I54: =SUM(C54:H54) -> 46478.6 | J54: 6.8 | K54: 1607.1 | L54: 1511.2 | M54: 20609.3 | N54: =SUM(J54:M54) -> 23734.4 | O54: 70213 | P54: 成長量 | R54: =O54+R49 -> 70213

Sheet 長野
A1: 第4表 地域振興局別・資源構成表
A3: 長野地域振興局 | O3: 単位 面積 : ha、蓄積 成長量 : ㎥
B4: 樹種 | C4: 針 葉 樹 | J4: 広 葉 樹 | O4: 計
C5: ス ギ | D5: ヒ ノ キ | E5: サ ワ ラ | F5: ア カ マ ツ | G5: カ ラ マ ツ | H5: そ の 他 針 | I5: 小 計 | J5: ク ヌ ギ | K5: ブ ナ | L5: ナ ラ | M5: そ の 他 広 | N5: 小 計
A6: 齢級
A7: 1 | B7: 面積 | C7: 10.65 | F7: 0.34 | G7: 44.96 | I7: 55.95 | M7: 12.15 | N7: 12.15 | O7: =I7+N7 -> 68.1
B8: 蓄積 | C8: 0 | F8: 0 | G8: 0 | I8: 0 | M8: 0 | N8: 0 | O8: 0
B9: 成長 | C9: 0 | F9: 0 | G9: 0 | I9: 0 | M9: 0 | N9: 0 | O9: 0
A10: 2 | B10: 面積 | C10: 3.04 | F10: 1.33 | G10: 15.75 | I10: 20.12 | J10: 0.71 | L10: 7.28 | M10: 15.31 | N10: 23.3 | O10: 43.42
B11: 蓄積 | C11: 0 | F11: 0 | G11: 0 | I11: 0 | J11: 16 | L11: 87 | M11: 192 | N11: 295 | O11: 295
B12: 成長 | C12: 0 | F12: 0 | G12: 0 | I12: 0 | J12: 5.1 | L12: 12.9 | M12: 27.9 | N12: 45.9 | O12: 45.9
A13: 3 | B13: 面積 | C13: 5.21 | D13: 0.5 | G13: 17.78 | I13: 23.49 | L13: 5.72 | M13: 28.76 | N13: 34.48 | O13: 57.97
B14: 蓄積 | C14: 688 | D14: 639 | G14: 4311 | I14: 5638 | L14: 112 | M14: 686 | N14: 798 | O14: 6436
B15: 成長 | C15: 169.9 | D15: 117.5 | G15: 431.1 | I15: 718.5 | L15: 10 | M15: 61.6 | N15: 71.6 | O15: 790.1
A16: 4 | B16: 面積 | C16: 3.63 | D16: 13.03 | F16: 0.07 | G16: 1.38 | I16: 18.11 | K16: 0.06 | L16: 1.33 | M16: 49.64 | N16: 51.03 | O16: 69.14
B17: 蓄積 | C17: 543 | D17: 2627 | F17: 5 | G17: 252 | I17: 3427 | K17: 1 | L17: 38 | M17: 1438 | N17: 1477 | O17: 4904
B18: 成長 | C18: 55.5 | D18: 260.6 | F18: 0.4 | G18: 17.1 | I18: 333.6 | K18: 0.1 | L18: 2.5 | M18: 96.6 | N18: 99.2 | O18: 432.8
A19: 5 | B19: 面積 | C19: 14.21 | D19: 29.98 | F19: 0.89 | G19: 5.74 | H19: 5.87 | I19: 56.69 | J19: 9.8 | K19: 1.81 | L19: 12.66 | M19: 77.05 | N19: 101.32 | O19: 158.01
B20: 蓄積 | C20: 2663 | D20: 4324 | F20: 97 | G20: 660 | H20: 163 | I20: 7907 | J20: 352 | K20: 45 | L20: 529 | M20: 2961 | N20: 3887 | O20: 11794
B21: 成長 | C21: 185.3 | D21: 256.5 | F21: 5.1 | G21: 35.8 | H21: 11.3 | I21: 494 | J21: 11.4 | K21: 3.5 | L21: 27.5 | M21: 157.1 | N21: 199.5 | O21: 693.5
A22: 6 | B22: 面積 | C22: 71.21 | D22: 63.26 | F22: 7.72 | G22: 18.68 | H22: 17.39 | I22: 178.26 | J22: 2.58 | K22: 2.29 | L22: 32.51 | M22: 213.36 | N22: 250.74 | O22: 429
B23: 蓄積 | C23: 19316 | D23: 9591 | F23: 803 | G23: 2803 | H23: 1201 | I23: 33714 | J23: 196 | K23: 69 | L23: 1676 | M23: 10627 | N23: 12568 | O23: 46282
B24: 成長 | C24: 927.7 | D24: 427.8 | F24: 29.9 | G24: 101.1 | H24: 65 | I24: 1551.5 | J24: 4.4 | K24: 4.6 | L24: 68.4 | M24: 429.8 | N24: 507.2 | O24: 2058.7
A25: 7 | B25: 面積 | C25: 218.56 | D25: 62.38 | F25: 7.88 | G25: 25.58 | H25: 23.49 | I25: 337.89 | J25: 7.86 | K25: 4.76 | L25: 59.89 | M25: 456.11 | N25: 528.62 | O25: 866.51
B26: 蓄積 | C26: 65582 | D26: 11701 | F26: 1275 | G26: 4165 | H26: 927 | I26: 83650 | J26: 611 | K26: 171 | L26: 3618 | M26: 25492 | N26: 29892 | O26: 113542
B27: 成長 | C27: 2461.4 | D27: 406 | F27: 30.6 | G27: 118.5 | H27: 40.8 | I27: 3057.3 | J27: 9.1 | K27: 10 | L27: 111.6 | M27: 792 | N27: 922.7 | O27: 3980
A28: 8 | B28: 面積 | C28: 504.57 | D28: 44.59 | F28: 10.3 | G28: 43.28 | H28: 20.89 | I28: 623.63 | J28: 16.35 | K28: 1.4 | L28: 123.23 | M28: 801.14 | N28: 942.12 | O28: 1565.75
B29: 蓄積 | C29: 171848 | D29: 10279 | F29: 1715 | G29: 9802 | H29: 1382 | I29: 195026 | J29: 1266 | K29: 54 | L29: 8690 | M29: 50556 | N29: 60566 | O29: 255592
B30: 成長 | C30: 5669.3 | D30: 283.2 | F30: 36.9 | G30: 226.1 | H30: 51.1 | I30: 6266.6 | J30: 10.9 | K30: 2.3 | L30: 264 | M30: 1532.4 | N30: 1809.6 | O30: 8076.2
A31: 9 | B31: 面積 | C31: 1063.12 | D31: 111.04 | F31: 52.01 | G31: 64.14 | H31: 38.69 | I31: 1329 | J31: 19.2 | L31: 168.26 | M31: 680.94 | N31: 868.4 | O31: 2197.4
B32: 蓄積 | C32: 428853 | D32: 26006 | F32: 9981 | G32: 13894 | H32: 3821 | I32: 482555 | J32: 1642 | L32: 13587 | M32: 51547 | N32: 66776 | O32: 549331
B33: 成長 | C33: 9866.9 | D33: 599.7 | F33: 151.9 | G33: 302.5 | H33: 122.6 | I33: 11043.6 | J33: 7.9 | L33: 379.3 | M33: 1437.4 | N33: 1824.6 | O33: 12868.2
A34: 10 | B34: 面積 | C34: 1490.1 | D34: 119.4 | F34: 168.68 | G34: 260.47 | H34: 82.97 | I34: 2121.62 | J34: 10.63 | K34: 12.1 | L34: 62.06 | M34: 640.49 | N34: 725.28 | O34: 2846.9
B35: 蓄積 | C35: 640921 | D35: 25600 | F35: 34338 | G35: 59711 | H35: 7803 | I35: 768373 | J35: 957 | K35: 967 | L35: 5693 | M35: 53224 | N35: 60841 | O35: 829214
B36: 成長 | C36: 11011.1 | D36: 472.1 | F36: 451.8 | G36: 926.4 | H36: 215.5 | I36: 13076.9 | J36: 1.2 | K36: 27.1 | L36: 144.8 | M36: 1357.3 | N36: 1530.4 | O36: 14607.3
A37: 11 | B37: 面積 | C37: 1953.26 | D37: 107.42 | F37: 336.81 | G37: 626.74 | H37: 21.31 | I37: 3045.54 | J37: 10.06 | K37: 3.01 | L37: 50.9 | M37: 907.56 | N37: 971.53 | O37: 4017.07
B38: 蓄積 | C38: 906989 | D38: 25542 | F38: 70751 | G38: 160173 | H38: 2310 | I38: 1165765 | J38: 889 | K38: 277 | L38: 5130 | M38: 83291 | N38: 89587 | O38: 1255352 | P38: 伐 跡 | R38: 64.91
B39: 成長 | C39: 11090.7 | D39: 415.6 | F39: 788.7 | G39: 2258.7 | H39: 54.6 | I39: 14608.3 | J39: 0 | K39: 6.6 | L39: 102.7 | M39: 1622.9 | N39: 1732.2 | O39: 16340.5 | P39: 未立木地 | R39: 1393.41
A40: 12 | B40: 面積 | C40: 2531.49 | D40: 19.42 | F40: 645.78 | G40: 1834.31 | H40: 18.01 | I40: 5049.01 | J40: 22.53 | K40: 2.07 | L40: 97.88 | M40: 1410.77 | N40: 1533.25 | O40: 6582.26 | P40: 岩石地 | R40: 643.44
B41: 蓄積 | C41: 1250810 | D41: 4989 | F41: 139152 | G41: 517188 | H41: 2029 | I41: 1914168 | J41: 1995 | K41: 209 | L41: 10419 | M41: 142779 | N41: 155402 | O41: 2069570 | P41: 崩壊地 | R41: 510.44
B42: 成長 | C42: 13839.7 | D42: 70.2 | F42: 1307 | G42: 6734.7 | H42: 38.5 | I42: 21990.1 | J42: 0 | K42: 4.6 | L42: 203.8 | M42: 2756.1 | N42: 2964.5 | O42: 24954.6 | P42: はげ山 | R42: 4.17
A43: 13 | B43: 面積 | C43: 2591 | D43: 8.52 | E43: 0.13 | F43: 691.9 | G43: 4670.7 | H43: 13.28 | I43: 7975.53 | J43: 84.83 | K43: 14.34 | L43: 206.01 | M43: 2754.03 | N43: 3059.21 | O43: 11034.74 | P43: 施設敷 | R43: 129.83
B44: 蓄積 | C44: 1329058 | D44: 2327 | E44: 33 | F44: 154125 | G44: 1339090 | H44: 1805 | I44: 2826438 | J44: 7443 | K44: 1338 | L44: 23857 | M44: 302102 | N44: 334740 | O44: 3161178 | P44: 林地開発 | R44: 84.08
B45: 成長 | C45: 14111.3 | D45: 31.7 | E45: 0.4 | F45: 1409.1 | G45: 16863.8 | H45: 34.2 | I45: 32450.5 | J45: 0 | K45: 30.4 | L45: 389.8 | M45: 4955.8 | N45: 5376 | O45: 37826.5 | P45: 計 | R45: =SUM(R38:R44) -> 2830.28
A46: 14 | B46: 面積 | C46: 2013.18 | D46: 8.91 | E46: 0.26 | F46: 453.81 | G46: 4523.52 | H46: 7.54 | I46: 7007.22 | J46: 208.71 | L46: 458.43 | M46: 4932.29 | N46: 5599.43 | O46: 12606.65 | P46: 竹 林 | R46: 160.59
B47: 蓄積 | C47: 1069260 | D47: 2500 | E47: 75 | F47: 106180 | G47: 1345404 | H47: 1213 | I47: 2524632 | J47: 18372 | L47: 55356 | M47: 573179 | N47: 646907 | O47: 3171539 | P47: 更新 困難地 | Q47: 面積 | R47: 16.95
B48: 成長 | C48: 8830.8 | D48: 27.4 | E48: 0.8 | F48: 849.8 | G48: 14555.9 | H48: 19.6 | I48: 24284.3 | J48: 0 | L48: 607.6 | M48: 6474.4 | N48: 7082 | O48: 31366.3 | Q48: 蓄積 | R48: 2856
A49: 15 以上 | B49: 面積 | C49: 4194.29 | D49: 222.34 | E49: 1.71 | F49: 3674.23 | G49: 5011.01 | H49: 569.33 | I49: 13672.91 | J49: 541.22 | K49: 480.99 | L49: 1483.16 | M49: 19454.35 | N49: 21959.72 | O49: 35632.63 | Q49: 成長 | R49: 15.3
B50: 蓄積 | C50: 2382767 | D50: 63140 | E50: 517 | F50: 899719 | G50: 1567857 | H50: 117749 | I50: 5031749 | J50: 46879 | K50: 67857 | L50: 189215 | M50: 2372213 | N50: 2676164 | O50: 7707913
B51: 成長 | C51: 10225.3 | D51: 55.9 | E51: 1.2 | F51: 3026.5 | G51: 8962 | H51: 366.7 | I51: 22637.6 | J51: 0 | K51: 61.4 | L51: 1149.9 | M51: 12167.2 | N51: 13378.5 | O51: 36016.1 | P51: 総 合 計
A52: 計 | B52: 面積 | C52: =SUM(C7,C10,C13,C16,C19,C22,C25,C28,C31,C34,C37,C40,C43,C46,C49) -> 16667.52 | D52: 810.79 | E52: 2.1 | F52: 6051.75 | G52: 17164.04 | H52: 818.77 | I52: =SUM(C52:H52) -> 41514.97 | J52: =SUM(J7,J10,J13,J16,J19,J22,J25,J28,J31,J34,J37,J40,J43,J46,J49) -> 934.48 | K52: =SUM(K7,K10,K13,K16,K19,K22,K25,K28,K31,K34,K37,K40,K43,K46,K49) -> 522.83 | L52: =SUM(L7,L10,L13,L16,L19,L22,L25,L28,L31,L34,L37,L40,L43,L46,L49) -> 2769.32 | M52: =SUM(M7,M10,M13,M16,M19,M22,M25,M28,M31,M34,M37,M40,M43,M46,M49) -> 32433.95 | N52: =SUM(J52:M52) -> 36660.58 | O52: =SUM(N52,I52) -> 78175.55 | P52: 面 積 | R52: =SUM(O52,R45,R47,R46) -> 81183.37
B53: 蓄積 | C53: 8269298 | D53: 189265 | E53: 625 | F53: 1418141 | G53: 5025310 | H53: 140403 | I53: =SUM(C53:H53) -> 15043042 | J53: =SUM(J8,J11,J14,J17,J20,J23,J26,J29,J32,J35,J38,J41,J44,J47,J50) -> 80618 | K53: 70988 | L53: 318007 | M53: 3670287 | N53: =SUM(J53:M53) -> 4139900 | O53: 19182942 | P53: 蓄 積 | R53: =O53+R48 -> 19185798
B54: 成長 | C54: 88444.9 | D54: 3424.2 | E54: 2.4 | F54: 8087.7 | G54: 51533.7 | H54: 1019.9 | I54: =SUM(C54:H54) -> 152512.8 | J54: 50 | K54: 150.6 | L54: 3474.8 | M54: 33868.5 | N54: =SUM(J54:M54) -> 37543.9 | O54: 190056.7 | P54: 成長量 | R54: =O54+R49 -> 190072

Sheet 北信
A1: 第4表 地域振興局別・資源構成表
A3: 北信地域振興局 | O3: 単位 面積 : ha、蓄積 成長量 : ㎥
B4: 樹種 | C4: 針 葉 樹 | J4: 広 葉 樹 | O4: 計
C5: ス ギ | D5: ヒ ノ キ | E5: サ ワ ラ | F5: ア カ マ ツ | G5: カ ラ マ ツ | H5: そ の 他 針 | I5: 小 計 | J5: ク ヌ ギ | K5: ブ ナ | L5: ナ ラ | M5: そ の 他 広 | N5: 小 計
A6: 齢級
A7: 1 | B7: 面積 | C7: 1.1 | G7: 2.06 | I7: 3.16 | M7: 1.68 | N7: 1.68 | O7: =I7+N7 -> 4.84
B8: 蓄積 | C8: 0 | G8: 0 | I8: 0 | M8: 0 | N8: 0 | O8: 0
B9: 成長 | C9: 0 | G9: 0 | I9: 0 | M9: 0 | N9: 0 | O9: 0
A10: 2 | B10: 面積 | C10: 8.21 | F10: 0.03 | G10: 1.27 | I10: 9.51 | M10: 7.79 | N10: 7.79 | O10: 17.3
B11: 蓄積 | C11: 0 | F11: 0 | G11: 0 | I11: 0 | M11: 107 | N11: 107 | O11: 107
B12: 成長 | C12: 0 | F12: 0 | G12: 0 | I12: 0 | M12: 15.4 | N12: 15.4 | O12: 15.4
A13: 3 | B13: 面積 | C13: 7.47 | G13: 12.8 | I13: 20.27 | K13: 2.38 | M13: 17.33 | N13: 19.71 | O13: 39.98
B14: 蓄積 | C14: 937 | G14: 742 | I14: 1679 | K14: 24 | M14: 407 | N14: 431 | O14: 2110
B15: 成長 | C15: 163.6 | G15: 74.2 | I15: 237.8 | K15: 2.5 | M15: 35.4 | N15: 37.9 | O15: 275.7
A16: 4 | B16: 面積 | C16: 3.96 | F16: 0.41 | I16: 4.37 | L16: 1.47 | M16: 34.81 | N16: 36.28 | O16: 40.65
B17: 蓄積 | C17: 619 | F17: 36 | I17: 655 | L17: 48 | M17: 1099 | N17: 1147 | O17: 1802
B18: 成長 | C18: 63 | F18: 2.9 | I18: 65.9 | L18: 3.3 | M18: 74.3 | N18: 77.6 | O18: 143.5
A19: 5 | B19: 面積 | C19: 52.62 | D19: 0.25 | F19: 0.11 | G19: 1.19 | I19: 54.17 | J19: 0.46 | K19: 3.38 | L19: 4.29 | M19: 138.69 | N19: 146.82 | O19: 200.99
B20: 蓄積 | C20: 12522 | D20: 104 | F20: 14 | G20: 161 | I20: 12801 | J20: 29 | K20: 155 | L20: 192 | M20: 5274 | N20: 5650 | O20: 18451
B21: 成長 | C21: 864 | D21: 6.1 | F21: 0.8 | G21: 8.6 | I21: 879.5 | J21: 0.8 | K21: 12.3 | L21: 10.1 | M21: 274.9 | N21: 298.1 | O21: 1177.6
A22: 6 | B22: 面積 | C22: 124.88 | D22: 0.07 | F22: 0.86 | G22: 0.38 | H22: 0.36 | I22: 126.55 | J22: 0.21 | K22: 6.01 | L22: 7.56 | M22: 118.87 | N22: 132.65 | O22: 259.2
B23: 蓄積 | C23: 30005 | D23: 9 | F23: 123 | G23: 58 | H23: 22 | I23: 30217 | J23: 16 | K23: 207 | L23: 390 | M23: 6046 | N23: 6659 | O23: 36876
B24: 成長 | C24: 1522.4 | D24: 0.4 | F24: 4.5 | G24: 2 | H24: 1.3 | I24: 1530.6 | J24: 0.4 | K24: 13.6 | L24: 16 | M24: 246 | N24: 276 | O24: 1806.6
A25: 7 | B25: 面積 | C25: 173.38 | D25: 0.75 | F25: 0.5 | G25: 3.23 | H25: 0.11 | I25: 177.97 | J25: 0.39 | K25: 5.93 | L25: 15 | M25: 259.55 | N25: 280.87 | O25: 458.84
B26: 蓄積 | C26: 47591 | D26: 115 | F26: 85 | G26: 587 | H26: 11 | I26: 48389 | J26: 31 | K26: 181 | L26: 974 | M26: 14651 | N26: 15837 | O26: 64226
B27: 成長 | C27: 1866.2 | D27: 4 | F27: 2 | G27: 16.6 | H27: 0.5 | I27: 1889.3 | J27: 0.4 | K27: 10.1 | L27: 30.8 | M27: 456.1 | N27: 497.4 | O27: 2386.7
A28: 8 | B28: 面積 | C28: 419.75 | F28: 1.17 | G28: 18.43 | I28: 439.35 | J28: 2.97 | K28: 6.45 | L28: 38.03 | M28: 301.35 | N28: 348.8 | O28: 788.15
B29: 蓄積 | C29: 152984 | F29: 187 | G29: 2974 | I29: 156145 | J29: 256 | K29: 304 | L29: 2708 | M29: 20124 | N29: 23392 | O29: 179537
B30: 成長 | C30: 5059.7 | F30: 3.7 | G30: 75.1 | I30: 5138.5 | J30: 2.8 | K30: 13.1 | L30: 81.6 | M30: 608.7 | N30: 706.2 | O30: 5844.7
A31: 9 | B31: 面積 | C31: 669.84 | D31: 6.46 | F31: 3.23 | G31: 33.65 | I31: 713.18 | J31: 2.56 | K31: 7.19 | L31: 48.55 | M31: 408.8 | N31: 467.1 | O31: 1180.28
B32: 蓄積 | C32: 261482 | D32: 1087 | F32: 664 | G32: 6159 | I32: 269392 | J32: 228 | K32: 495 | L32: 3931 | M32: 31053 | N32: 35707 | O32: 305099
B33: 成長 | C33: 6087.6 | D33: 28.9 | F33: 10 | G33: 121.6 | I33: 6248.1 | J33: 1.1 | K33: 17.3 | L33: 110.6 | M33: 864.4 | N33: 993.4 | O33: 7241.5
A34: 10 | B34: 面積 | C34: 1108.16 | D34: 0.61 | F34: 30.19 | G34: 38.99 | H34: 0.13 | I34: 1178.08 | J34: 2.24 | K34: 48.34 | L34: 27.67 | M34: 400.91 | N34: 479.16 | O34: 1657.24
B35: 蓄積 | C35: 465022 | D35: 141 | F35: 6250 | G35: 8205 | H35: 17 | I35: 479635 | J35: 201 | K35: 2692 | L35: 2524 | M35: 33683 | N35: 39100 | O35: 518735
B36: 成長 | C36: 8084.7 | D36: 2.5 | F36: 81.4 | G36: 132.7 | H36: 0.5 | I36: 8301.8 | J36: 0.4 | K36: 83.2 | L36: 64.6 | M36: 856.9 | N36: 1005.1 | O36: 9306.9
A37: 11 | B37: 面積 | C37: 1330.83 | D37: 0.11 | F37: 27.71 | G37: 56.93 | H37: 8.68 | I37: 1424.26 | J37: 2.12 | K37: 77.96 | L37: 20.75 | M37: 837.7 | N37: 938.53 | O37: 2362.79
B38: 蓄積 | C38: 599621 | D38: 28 | F38: 5555 | G38: 15520 | H38: 768 | I38: 621492 | J38: 191 | K38: 4436 | L38: 2104 | M38: 66865 | N38: 73596 | O38: 695088 | P38: 伐 跡 | R38: 24.19
B39: 成長 | C39: 7490.6 | D39: 0.4 | F39: 61.7 | G39: 220.7 | H39: 17.7 | I39: 7791.1 | J39: 0 | K39: 119 | L39: 42.6 | M39: 1265 | N39: 1426.6 | O39: 9217.7 | P39: 未立木地 | R39: 408.81
A40: 12 | B40: 面積 | C40: 1760.19 | F40: 50.16 | G40: 311.61 | H40: 9.34 | I40: 2131.3 | J40: 0.4 | K40: 119.41 | L40: 24.08 | M40: 1909.66 | N40: 2053.55 | O40: 4184.85 | P40: 岩石地 | R40: 89.73
B41: 蓄積 | C41: 872249 | F41: 10855 | G41: 87333 | H41: 353 | I41: 970790 | J41: 38 | K41: 11326 | L41: 2595 | M41: 136645 | N41: 150604 | O41: 1121394 | P41: 崩壊地 | R41: 176.41
B42: 成長 | C42: 9634.8 | F42: 100.4 | G42: 1140.2 | H42: 6.7 | I42: 10882.1 | J42: 0 | K42: 254.4 | L42: 50.8 | M42: 2546.8 | N42: 2852 | O42: 13734.1 | P42: はげ山 | R42: 22.67
A43: 13 | B43: 面積 | C43: 1700.76 | F43: 64.33 | G43: 780.11 | H43: 65.05 | I43: 2610.25 | J43: 4.36 | K43: 368.41 | L43: 56.08 | M43: 2564.06 | N43: 2992.91 | O43: 5603.16 | P43: 施設敷 | R43: 111.04
B44: 蓄積 | C44: 879744 | F44: 14610 | G44: 224584 | H44: 6987 | I44: 1125925 | J44: 404 | K44: 29563 | L44: 6499 | M44: 238245 | N44: 274711 | O44: 1400636 | P44: 林地開発 | R44: 90.89
B45: 成長 | C45: 9337.6 | F45: 133.8 | G45: 2850.4 | H45: 132.7 | I45: 12454.5 | J45: 0 | K45: 686 | L45: 104.2 | M45: 3863.2 | N45: 4653.4 | O45: 17107.9 | P45: 計 | R45: =SUM(R38:R44) -> 923.74
A46: 14 | B46: 面積 | C46: 1405.97 | D46: 0.26 | F46: 62.31 | G46: 836.89 | H46: 132.98 | I46: 2438.41 | J46: 7.55 | K46: 326.17 | L46: 101.59 | M46: 3534.66 | N46: 3969.97 | O46: 6408.38 | P46: 竹 林 | R46: 1.94
B47: 蓄積 | C47: 754144 | D47: 75 | F47: 15360 | G47: 250056 | H47: 17150 | I47: 1036785 | J47: 690 | K47: 32983 | L47: 12489 | M47: 371635 | N47: 417797 | O47: 1454582 | P47: 更新 困難地 | Q47: 面積 | R47: 31.51
B48: 成長 | C48: 6300.4 | D48: 0.8 | F48: 114.5 | G48: 2717 | H48: 308.3 | I48: 9441 | J48: 0 | K48: 628.5 | L48: 134.5 | M48: 4450 | N48: 5213 | O48: 14654 | Q48: 蓄積 | R48: 4599
A49: 15 以上 | B49: 面積 | C49: 3281.39 | D49: 38.45 | F49: 390.2 | G49: 941.08 | H49: 2159.23 | I49: 6810.35 | J49: 12.99 | K49: 2256.37 | L49: 430.29 | M49: 15528.24 | N49: 18227.89 | O49: 25038.24 | Q49: 成長 | R49: 3.5
B50: 蓄積 | C50: 1881656 | D50: 10553 | F50: 103705 | G50: 303779 | H50: 406785 | I50: 2706478 | J50: 1207 | K50: 303808 | L50: 53134 | M50: 1718594 | N50: 2076743 | O50: 4783221
B51: 成長 | C51: 8236.5 | D51: 0.5 | F51: 404.6 | G51: 1651.8 | H51: 615.3 | I51: 10908.7 | J51: 0 | K51: 1657.8 | L51: 191.1 | M51: 7013.9 | N51: 8862.8 | O51: 19771.5 | P51: 総 合 計
A52: 計 | B52: 面積 | C52: =SUM(C7,C10,C13,C16,C19,C22,C25,C28,C31,C34,C37,C40,C43,C46,C49) -> 12048.51 | D52: 46.96 | E52: 0 | F52: 631.21 | G52: 3038.62 | H52: 2375.88 | I52: =SUM(C52:H52) -> 18141.18 | J52: =SUM(J7,J10,J13,J16,J19,J22,J25,J28,J31,J34,J37,J40,J43,J46,J49) -> 36.25 | K52: =SUM(K7,K10,K13,K16,K19,K22,K25,K28,K31,K34,K37,K40,K43,K46,K49) -> 3228 | L52: =SUM(L7,L10,L13,L16,L19,L22,L25,L28,L31,L34,L37,L40,L43,L46,L49) -> 775.36 | M52: =SUM(M7,M10,M13,M16,M19,M22,M25,M28,M31,M34,M37,M40,M43,M46,M49) -> 26064.1 | N52: =SUM(J52:M52) -> 30103.71 | O52: =SUM(N52,I52) -> 48244.89 | P52: 面 積 | R52: =SUM(O52,R45,R47,R46) -> 49202.08
B53: 蓄積 | C53: 5958576 | D53: 12112 | E53: 0 | F53: 157444 | G53: 900158 | H53: 432093 | I53: =SUM(C53:H53) -> 7460383 | J53: =SUM(J8,J11,J14,J17,J20,J23,J26,J29,J32,J35,J38,J41,J44,J47,J50) -> 3291 | K53: 386174 | L53: 87588 | M53: 2644428 | N53: =SUM(J53:M53) -> 3121481 | O53: 10581864 | P53: 蓄 積 | R53: =O53+R48 -> 10586463
B54: 成長 | C54: 64711.1 | D54: 43.6 | E54: 0 | F54: 920.3 | G54: 9010.9 | H54: 1083 | I54: =SUM(C54:H54) -> 75768.9 | J54: 5.9 | K54: 3497.8 | L54: 840.2 | M54: 22571 | N54: =SUM(J54:M54) -> 26914.9 | O54: 102683.8 | P54: 成長量 | R54: =O54+R49 -> 102687.3
